Workbook

Sheet Lift Results
H1: =IF(ISBLANK(A1),"",G1*2.2046) ->  | J1: =IF(ISBLANK(A1),"",I1*2.2046) ->  | L1: =IF(ISBLANK(A1),"",K1*2.2046) ->  | M1: =IF(ISBLANK(A1),"",G1+I1+K1) ->  | N1: =IF(ISBLANK(A1),"",M1*2.2046) ->  | O1: =IF(ISBLANK(A1),"",M1*P1*Q1) ->  | P1: =IF(ISNUMBER(C1),VLOOKUP(C1,af,2),"") ->  | Q1: =IF(ISNUMBER(D1),IF(LEFT(F1,1)="M",VLOOKUP(D1,mwf,2),VLOOKUP(D1,wwf,2)),"") -> 
B2: State | D2: BWT | E2: BWT | F2: Division | G2: Squat | H2: Squat | I2: Bench | J2: Bench | K2: Dead | L2: Dead | M2: Total | N2: Total | O2: Coef. | P2: Age Fctr | Q2: WgtFctr | R2: Place
A3: Lifter's Name | C3: Age | D3: (kgs.) | E3: (lbs.) | F3: Format must begin M- or F- | G3: (kgs.) | H3: (lbs.) | I3: (kgs.) | J3: (lbs.) | K3: (kgs.) | L3: (lbs.) | M3: (kgs.) | N3: (lbs.) | P3: =IF(ISNUMBER(C3),VLOOKUP(C3,af,2),"") ->  | Q3: =IF(ISNUMBER(D3),IF(LEFT(F3,1)="M",VLOOKUP(D3,mwf,2),VLOOKUP(D3,wwf,2)),"") ->  | R3: Other Notes
H4: =IF(ISBLANK(A4),"",G4*2.2046) ->  | J4: =IF(ISBLANK(A4),"",I4*2.2046) ->  | L4: =IF(ISBLANK(A4),"",K4*2.2046) ->  | M4: =IF(ISBLANK(A4),"",G4+I4+K4) ->  | N4: =IF(ISBLANK(A4),"",M4*2.2046) ->  | O4: =IF(ISBLANK(A4),"",M4*P4*Q4) ->  | P4: =IF(ISNUMBER(C4),VLOOKUP(C4,af,2),"") ->  | Q4: =IF(ISNUMBER(D4),IF(LEFT(F4,1)="M",VLOOKUP(D4,mwf,2),VLOOKUP(D4,wwf,2)),"") -> 
A5: Powerlifting: Raw Division
A6: Women | E6: =IF(ISBLANK(A6),"",D6*2.2046) -> 0 | H6: =IF(ISBLANK(A6),"",G6*2.2046) -> 0 | J6: =IF(ISBLANK(A6),"",I6*2.2046) -> 0 | L6: =IF(ISBLANK(A6),"",K6*2.2046) -> 0 | M6: =IF(ISBLANK(A6),"",G6+I6+K6) -> 0 | N6: =IF(ISBLANK(A6),"",M6*2.2046) -> 0 | O6: =IF(ISBLANK(A6),"",M6*P6*Q6) ->  | P6: =IF(ISNUMBER(C6),VLOOKUP(C6,af,2),"") ->  | Q6: =IF(ISNUMBER(D6),IF(LEFT(F6,1)="M",VLOOKUP(D6,mwf,2),VLOOKUP(D6,wwf,2)),"") -> 
A7: 56.0kg/123.4lb Open Women Raw APF | E7: =IF(ISBLANK(A7),"",D7*2.2046) -> 0 | H7: =IF(ISBLANK(A7),"",G7*2.2046) -> 0 | J7: =IF(ISBLANK(A7),"",I7*2.2046) -> 0 | L7: =IF(ISBLANK(A7),"",K7*2.2046) -> 0 | M7: =IF(ISBLANK(A7),"",G7+I7+K7) -> 0 | N7: =IF(ISBLANK(A7),"",M7*2.2046) -> 0 | O7: =IF(ISBLANK(A7),"",M7*P7*Q7) ->  | P7: =IF(ISNUMBER(C7),VLOOKUP(C7,af,2),"") ->  | Q7: =IF(ISNUMBER(D7),IF(LEFT(F7,1)="M",VLOOKUP(D7,mwf,2),VLOOKUP(D7,wwf,2)),"") -> 
A8: Gabriella Olson | B8: UT | C8: 29 | D8: 56 | E8: 123.4576 | F8: F-RO | G8: 75 | H8: =IF(ISBLANK(A8),"",G8*2.2046) -> 165.345 | I8: 50 | J8: =IF(ISBLANK(A8),"",I8*2.2046) -> 110.23 | K8: 80 | L8: =IF(ISBLANK(A8),"",K8*2.2046) -> 176.368 | M8: =IF(ISBLANK(A8),"",G8+I8+K8) -> 205 | N8: =IF(ISBLANK(A8),"",M8*2.2046) -> 451.943 | O8: =IF(ISBLANK(A8),"",M8*P8*Q8) -> 390.525 | P8: =IF(ISNUMBER(C8),VLOOKUP(C8,af,2),"") -> 1 | Q8: =IF(ISNUMBER(D8),IF(LEFT(F8,1)="M",VLOOKUP(D8,mwf,2),VLOOKUP(D8,wwf,2)),"") -> 1.905 | R8: 1
A10: 56.0kg/123.4lb Master 65+ Women Raw APF | E10: =IF(ISBLANK(A10),"",D10*2.2046) -> 0 | H10: =IF(ISBLANK(A10),"",G10*2.2046) -> 0 | J10: =IF(ISBLANK(A10),"",I10*2.2046) -> 0 | L10: =IF(ISBLANK(A10),"",K10*2.2046) -> 0 | M10: =IF(ISBLANK(A10),"",G10+I10+K10) -> 0 | N10: =IF(ISBLANK(A10),"",M10*2.2046) -> 0 | O10: =IF(ISBLANK(A10),"",M10*P10*Q10) ->  | P10: =IF(ISNUMBER(C10),VLOOKUP(C10,af,2),"") ->  | Q10: =IF(ISNUMBER(D10),IF(LEFT(F10,1)="M",VLOOKUP(D10,mwf,2),VLOOKUP(D10,wwf,2)),"") -> 
A11: Susie Rose | B11: UT | C11: 75 | E11: 0 | F11: F-RM6 | H11: 0 | I11: 27.5 | J11: 60.6265 | K11: 95 | L11: 209.437 | M11: 122.5 | N11: 270.0635 | P11: 1.835 | R11: 1
A13: 56.0kg/123.4lb Junior (20-23) Women Raw APF | E13: =IF(ISBLANK(A13),"",D13*2.2046) -> 0 | H13: =IF(ISBLANK(A13),"",G13*2.2046) -> 0 | J13: =IF(ISBLANK(A13),"",I13*2.2046) -> 0 | L13: =IF(ISBLANK(A13),"",K13*2.2046) -> 0 | M13: =IF(ISBLANK(A13),"",G13+I13+K13) -> 0 | N13: =IF(ISBLANK(A13),"",M13*2.2046) -> 0 | O13: =IF(ISBLANK(A13),"",M13*P13*Q13) ->  | P13: =IF(ISNUMBER(C13),VLOOKUP(C13,af,2),"") ->  | Q13: =IF(ISNUMBER(D13),IF(LEFT(F13,1)="M",VLOOKUP(D13,mwf,2),VLOOKUP(D13,wwf,2)),"") -> 
A14: Allison West | B14: UT | C14: 22 | D14: 55.8 | E14: 123.01668 | F14: F-RJR | G14: 117.5 | H14: 259.0405 | I14: 60 | J14: 132.276 | K14: 120 | L14: 264.552 | M14: 297.5 | N14: 655.8685 | O14: 575.10915 | P14: 1.01 | Q14: 1.914 | R14: 1
A16: 60.0kg/132lb Junior (20-23) Women Raw APF | E16: 0 | H16: 0 | J16: 0 | L16: 0 | M16: 0 | N16: 0
A17: Brittney Bavelas | B17: UT | C17: 22 | D17: 58.9 | E17: 129.85094 | F17: F-RJR | G17: 95 | H17: 209.437 | I17: 50 | J17: 110.23 | K17: 135 | L17: 297.621 | M17: 280 | N17: 617.288 | O17: 513.282 | P17: 1.01 | Q17: 1.815 | R17: 1
A19: 60.0kg/132lb Open Women Raw APF | E19: =IF(ISBLANK(A19),"",D19*2.2046) -> 0 | H19: =IF(ISBLANK(A19),"",G19*2.2046) -> 0 | J19: =IF(ISBLANK(A19),"",I19*2.2046) -> 0 | L19: =IF(ISBLANK(A19),"",K19*2.2046) -> 0 | M19: =IF(ISBLANK(A19),"",G19+I19+K19) -> 0 | N19: =IF(ISBLANK(A19),"",M19*2.2046) -> 0 | O19: =IF(ISBLANK(A19),"",M19*P19*Q19) ->  | P19: =IF(ISNUMBER(C19),VLOOKUP(C19,af,2),"") ->  | Q19: =IF(ISNUMBER(D19),IF(LEFT(F19,1)="M",VLOOKUP(D19,mwf,2),VLOOKUP(D19,wwf,2)),"") -> 
A20: Natalie Dobson | B20: UT | C20: 33 | D20: 58 | E20: 127.8668 | F20: F-RO | G20: 80 | H20: 176.368 | I20: 55 | J20: 121.253 | K20: 90 | L20: 198.414 | M20: 225 | N20: 496.035 | O20: 413.55 | P20: 1 | Q20: 1.838 | R20: 1
A22: 67.5kg/148.8lb Junior (20-23) Women Raw APF | E22: =IF(ISBLANK(A22),"",D22*2.2046) -> 0 | H22: =IF(ISBLANK(A22),"",G22*2.2046) -> 0 | J22: =IF(ISBLANK(A22),"",I22*2.2046) -> 0 | L22: =IF(ISBLANK(A22),"",K22*2.2046) -> 0 | M22: =IF(ISBLANK(A22),"",G22+I22+K22) -> 0 | N22: =IF(ISBLANK(A22),"",M22*2.2046) -> 0 | O22: =IF(ISBLANK(A22),"",M22*P22*Q22) ->  | P22: =IF(ISNUMBER(C22),VLOOKUP(C22,af,2),"") ->  | Q22: =IF(ISNUMBER(D22),IF(LEFT(F22,1)="M",VLOOKUP(D22,mwf,2),VLOOKUP(D22,wwf,2)),"") -> 
A23: Christina Martinez | B23: UT | C23: 23 | D23: 65.7 | E23: 144.84222 | F23: F-RJR | G23: 107.5 | H23: 236.9945 | I23: 55 | J23: 121.253 | K23: 127.5 | L23: 281.0865 | M23: 290 | N23: 639.334 | O23: 484.88 | P23: 1 | Q23: 1.672 | R23: 1
A25: 67.5kg/148.8lb Open Women Raw APF | E25: 0 | H25: 0 | J25: 0 | L25: 0 | M25: 0 | N25: 0
A26: Kimberly Miloser | B26: UT | C26: 28 | D26: 64.4 | E26: 141.97624 | F26: F-RO | G26: 95 | H26: 209.437 | I26: 50 | J26: 110.23 | K26: 112.5 | L26: 248.0175 | M26: 257.5 | N26: 567.6845 | O26: 436.205 | P26: 1 | Q26: 1.694 | R26: 3
A27: Hilary Murray | B27: UT | C27: 34 | D27: 67.1 | E27: =IF(ISBLANK(A27),"",D27*2.2046) -> 147.92866 | F27: F-RO | G27: 115 | H27: =IF(ISBLANK(A27),"",G27*2.2046) -> 253.529 | I27: 62.5 | J27: =IF(ISBLANK(A27),"",I27*2.2046) -> 137.7875 | K27: 152.5 | L27: =IF(ISBLANK(A27),"",K27*2.2046) -> 336.2015 | M27: =IF(ISBLANK(A27),"",G27+I27+K27) -> 330 | N27: =IF(ISBLANK(A27),"",M27*2.2046) -> 727.518 | O27: =IF(ISBLANK(A27),"",M27*P27*Q27) -> 543.51 | P27: =IF(ISNUMBER(C27),VLOOKUP(C27,af,2),"") -> 1 | Q27: =IF(ISNUMBER(D27),IF(LEFT(F27,1)="M",VLOOKUP(D27,mwf,2),VLOOKUP(D27,wwf,2)),"") -> 1.647 | R27: 1
A28: DQ-Naja Mavalwalla | B28: UT | C28: 24 | D28: 66.5 | E28: 146.6059 | F28: F-RO | G28: 102.5 | H28: 225.9715 | I28: 55 | J28: 121.253 | K28: 0 | L28: 0 | M28: 157.5 | N28: 347.2245 | O28: 260.6625 | P28: 1 | Q28: 1.655 | R28: DQ
A29: Heather Otto | B29: UT | C29: 36 | D29: 65.9 | E29: 145.28314 | F29: F-RO | G29: 90 | H29: 198.414 | I29: 72.5 | J29: 159.8335 | K29: 130 | L29: 286.598 | M29: 292.5 | N29: 644.8455 | O29: 487.89 | P29: 1 | Q29: 1.668 | R29: 2
A31: 90kg/198lb Open Women Raw AAPF | E31: 0 | H31: 0 | J31: 0 | L31: 0 | M31: 0 | N31: 0
A32: Mia Ristovska | B32: UT | C32: 32 | D32: 89 | E32: 196.2094 | F32: F-RO | G32: 135 | H32: 297.621 | I32: 60 | J32: 132.276 | K32: 137.5 | L32: 303.1325 | M32: 332.5 | N32: 733.0295 | O32: 474.4775 | P32: 1 | Q32: 1.427 | R32: 1
A34: Men | E34: =IF(ISBLANK(A34),"",D34*2.2046) -> 0 | H34: =IF(ISBLANK(A34),"",G34*2.2046) -> 0 | J34: =IF(ISBLANK(A34),"",I34*2.2046) -> 0 | L34: =IF(ISBLANK(A34),"",K34*2.2046) -> 0 | M34: =IF(ISBLANK(A34),"",G34+I34+K34) -> 0 | N34: =IF(ISBLANK(A34),"",M34*2.2046) -> 0 | O34: =IF(ISBLANK(A34),"",M34*P34*Q34) ->  | P34: =IF(ISNUMBER(C34),VLOOKUP(C34,af,2),"") ->  | Q34: =IF(ISNUMBER(D34),IF(LEFT(F34,1)="M",VLOOKUP(D34,mwf,2),VLOOKUP(D34,wwf,2)),"") -> 
A35: 75kg/165.4lb Open Men Raw APF | E35: =IF(ISBLANK(A35),"",D35*2.2046) -> 0 | H35: =IF(ISBLANK(A35),"",G35*2.2046) -> 0 | J35: =IF(ISBLANK(A35),"",I35*2.2046) -> 0 | L35: =IF(ISBLANK(A35),"",K35*2.2046) -> 0 | M35: =IF(ISBLANK(A35),"",G35+I35+K35) -> 0 | N35: =IF(ISBLANK(A35),"",M35*2.2046) -> 0 | O35: =IF(ISBLANK(A35),"",M35*P35*Q35) ->  | P35: =IF(ISNUMBER(C35),VLOOKUP(C35,af,2),"") ->  | Q35: =IF(ISNUMBER(D35),IF(LEFT(F35,1)="M",VLOOKUP(D35,mwf,2),VLOOKUP(D35,wwf,2)),"") -> 
A36: Adam Bavelas | B36: UT | C36: 27 | D36: 73.7 | E36: 162.47902 | F36: M-RO | G36: 165 | H36: 363.759 | I36: 130 | J36: 286.598 | K36: 215 | L36: 473.989 | M36: 510 | N36: 1124.346 | O36: 580.89 | P36: 1 | Q36: 1.139 | R36: 2
A37: Ethan Radin | B37: ID | C37: 25 | D37: 74.8 | E37: =IF(ISBLANK(A37),"",D37*2.2046) -> 164.90408 | F37: M-RO | G37: 207.5 | H37: =IF(ISBLANK(A37),"",G37*2.2046) -> 457.4545 | I37: 152.5 | J37: =IF(ISBLANK(A37),"",I37*2.2046) -> 336.2015 | K37: 237.5 | L37: =IF(ISBLANK(A37),"",K37*2.2046) -> 523.5925 | M37: =IF(ISBLANK(A37),"",G37+I37+K37) -> 597.5 | N37: =IF(ISBLANK(A37),"",M37*2.2046) -> 1317.2485 | O37: =IF(ISBLANK(A37),"",M37*P37*Q37) -> 669.2 | P37: =IF(ISNUMBER(C37),VLOOKUP(C37,af,2),"") -> 1 | Q37: =IF(ISNUMBER(D37),IF(LEFT(F37,1)="M",VLOOKUP(D37,mwf,2),VLOOKUP(D37,wwf,2)),"") -> 1.12 | R37: 1
A39: 82.5kg/181.8lb Junior (20-23) Men Raw APF | E39: 0 | H39: 0 | J39: 0 | L39: 0 | M39: 0 | N39: 0
A40: Cody Larsen | B40: UT | C40: 20 | D40: 81.9 | E40: 180.55674 | F40: M-RJR | G40: 182.5 | H40: 402.3395 | I40: 155 | J40: 341.713 | K40: 215 | L40: 473.989 | M40: 552.5 | N40: 1218.0415 | O40: 589.5617 | P40: 1.03 | Q40: 1.036 | R40: 1
A42: 82.5kg/181.8lb Open Men Raw APF | E42: =IF(ISBLANK(A42),"",D42*2.2046) -> 0 | H42: =IF(ISBLANK(A42),"",G42*2.2046) -> 0 | J42: =IF(ISBLANK(A42),"",I42*2.2046) -> 0 | L42: =IF(ISBLANK(A42),"",K42*2.2046) -> 0 | M42: =IF(ISBLANK(A42),"",G42+I42+K42) -> 0 | N42: =IF(ISBLANK(A42),"",M42*2.2046) -> 0 | O42: =IF(ISBLANK(A42),"",M42*P42*Q42) ->  | P42: =IF(ISNUMBER(C42),VLOOKUP(C42,af,2),"") ->  | Q42: =IF(ISNUMBER(D42),IF(LEFT(F42,1)="M",VLOOKUP(D42,mwf,2),VLOOKUP(D42,wwf,2)),"") -> 
A43: Chase Carlisle | B43: UT | C43: 25 | D43: 81.2 | E43: =IF(ISBLANK(A43),"",D43*2.2046) -> 179.01352 | F43: M-RO | G43: 215 | H43: =IF(ISBLANK(A43),"",G43*2.2046) -> 473.989 | I43: 145 | J43: =IF(ISBLANK(A43),"",I43*2.2046) -> 319.667 | K43: 225 | L43: =IF(ISBLANK(A43),"",K43*2.2046) -> 496.035 | M43: =IF(ISBLANK(A43),"",G43+I43+K43) -> 585 | N43: =IF(ISBLANK(A43),"",M43*2.2046) -> 1289.691 | O43: =IF(ISBLANK(A43),"",M43*P43*Q43) -> 610.74 | P43: =IF(ISNUMBER(C43),VLOOKUP(C43,af,2),"") -> 1 | Q43: =IF(ISNUMBER(D43),IF(LEFT(F43,1)="M",VLOOKUP(D43,mwf,2),VLOOKUP(D43,wwf,2)),"") -> 1.044 | R43: 1
E44: =IF(ISBLANK(A44),"",D44*2.2046) ->  | H44: =IF(ISBLANK(A44),"",G44*2.2046) ->  | J44: =IF(ISBLANK(A44),"",I44*2.2046) ->  | L44: =IF(ISBLANK(A44),"",K44*2.2046) ->  | M44: =IF(ISBLANK(A44),"",G44+I44+K44) ->  | N44: =IF(ISBLANK(A44),"",M44*2.2046) ->  | O44: =IF(ISBLANK(A44),"",M44*P44*Q44) ->  | P44: =IF(ISNUMBER(C44),VLOOKUP(C44,af,2),"") ->  | Q44: =IF(ISNUMBER(D44),IF(LEFT(F44,1)="M",VLOOKUP(D44,mwf,2),VLOOKUP(D44,wwf,2)),"") -> 
A45: 90.0kg/198.4lb Open Men Raw APF | E45: 0 | H45: 0 | J45: 0 | L45: 0 | M45: 0 | N45: 0
A46: Austin Hartford | B46: UT | C46: 23 | D46: 90 | E46: =IF(ISBLANK(A46),"",D46*2.2046) -> 198.414 | F46: M-RO | G46: 192.5 | H46: =IF(ISBLANK(A46),"",G46*2.2046) -> 424.3855 | I46: 147.5 | J46: =IF(ISBLANK(A46),"",I46*2.2046) -> 325.1785 | K46: 252.5 | L46: =IF(ISBLANK(A46),"",K46*2.2046) -> 556.6615 | M46: =IF(ISBLANK(A46),"",G46+I46+K46) -> 592.5 | N46: =IF(ISBLANK(A46),"",M46*2.2046) -> 1306.2255 | O46: =IF(ISBLANK(A46),"",M46*P46*Q46) -> 574.1325 | P46: =IF(ISNUMBER(C46),VLOOKUP(C46,af,2),"") -> 1 | Q46: =IF(ISNUMBER(D46),IF(LEFT(F46,1)="M",VLOOKUP(D46,mwf,2),VLOOKUP(D46,wwf,2)),"") -> 0.969 | R46: 2
A47: Brandon Carlisle | B47: UT | C47: 30 | D47: 89.1 | E47: 196.42986 | F47: M-RO | G47: 210 | H47: 462.966 | I47: 160 | J47: 352.736 | K47: 245 | L47: 540.127 | M47: 615 | N47: 1355.829 | O47: 600.24 | P47: 1 | Q47: 0.976 | R47: 1
A48: Cameron Bucuren | B48: UT | C48: 25 | D48: 87.4 | E48: =IF(ISBLANK(A48),"",D48*2.2046) -> 192.68204 | F48: M-RO | G48: 147.5 | H48: =IF(ISBLANK(A48),"",G48*2.2046) -> 325.1785 | I48: 102.5 | J48: =IF(ISBLANK(A48),"",I48*2.2046) -> 225.9715 | K48: 207.5 | L48: =IF(ISBLANK(A48),"",K48*2.2046) -> 457.4545 | M48: =IF(ISBLANK(A48),"",G48+I48+K48) -> 457.5 | N48: =IF(ISBLANK(A48),"",M48*2.2046) -> 1008.6045 | O48: =IF(ISBLANK(A48),"",M48*P48*Q48) -> 452.01 | P48: =IF(ISNUMBER(C48),VLOOKUP(C48,af,2),"") -> 1 | Q48: =IF(ISNUMBER(D48),IF(LEFT(F48,1)="M",VLOOKUP(D48,mwf,2),VLOOKUP(D48,wwf,2)),"") -> 0.988 | R48: 3
A50: 110.0kg/242.lb Junior (20-23) Men Raw APF | E50: 0 | H50: 0 | J50: 0 | L50: 0 | M50: 0 | N50: 0
A51: John Jensen | B51: UT | C51: 21 | D51: 101.3 | E51: 223.32598 | F51: M-RJR | G51: 240 | H51: 529.104 | I51: 142.5 | J51: 314.1555 | K51: 277.5 | L51: 611.7765 | M51: 660 | N51: 1455.036 | O51: 612.612 | P51: 1.02 | Q51: 0.91 | R51: 1
A53: 125.0kg/275lb Master (45-49) Men Raw APF | E53: 0 | H53: 0 | J53: 0 | L53: 0 | M53: 0 | N53: 0
A54: Andy Pepito | B54: UT | C54: 48 | E54: 0 | F54: M-RM2 | H54: 0 | J54: 0 | L54: 0 | M54: 0 | N54: 0 | P54: 1.097 | R54: N/A
A56: 125.0kg/275lb Open Men Raw APF | E56: 0 | H56: 0 | J56: 0 | L56: 0 | M56: 0 | N56: 0
A57: Paul Rose | B57: UT | C57: 34 | D57: 118.8 | E57: 261.90648 | F57: M-RO | G57: 182.5 | H57: 402.3395 | I57: 150 | J57: 330.69 | K57: 230 | L57: 507.058 | M57: 562.5 | N57: 1240.0875 | O57: 487.125 | P57: 1 | Q57: 0.866 | R57: 1
A60: Powerlifting: Classic Raw Division
A61: Women | E61: =IF(ISBLANK(A61),"",D61*2.2046) -> 0 | H61: =IF(ISBLANK(A61),"",G61*2.2046) -> 0 | J61: =IF(ISBLANK(A61),"",I61*2.2046) -> 0 | L61: =IF(ISBLANK(A61),"",K61*2.2046) -> 0 | M61: =IF(ISBLANK(A61),"",G61+I61+K61) -> 0 | N61: =IF(ISBLANK(A61),"",M61*2.2046) -> 0 | O61: =IF(ISBLANK(A61),"",M61*P61*Q61) ->  | P61: =IF(ISNUMBER(C61),VLOOKUP(C61,af,2),"") ->  | Q61: =IF(ISNUMBER(D61),IF(LEFT(F61,1)="M",VLOOKUP(D61,mwf,2),VLOOKUP(D61,wwf,2)),"") -> 
A62: 60kg/132lb Junior (20-23) Women Classic Raw AAPF | E62: 0 | H62: 0 | J62: 0 | L62: 0 | M62: 0 | N62: 0
A63: Mckinzi Atwood | B63: UT | C63: 23 | D63: 59.6 | E63: 131.39416 | F63: F-CRJR | G63: 102.5 | H63: 225.9715 | I63: 65 | J63: 143.299 | K63: 140 | L63: 308.644 | M63: 307.5 | N63: 677.9145 | O63: 551.9625 | P63: 1 | Q63: 1.795 | R63: 1
A65: 75kg/165.4lb Teen (16-17) Women Raw AAPF | E65: 0 | H65: 0 | J65: 0 | L65: 0 | M65: 0 | N65: 0
A66: Taylor Vigil | B66: UT | C66: 17 | D66: 73.1 | E66: 161.15626 | F66: F-RT3 | G66: 132.5 | H66: 292.1095 | I66: 62.5 | J66: 137.7875 | K66: 140 | L66: 308.644 | M66: 335 | N66: 738.541 | O66: 566.9406 | P66: 1.08 | Q66: 1.567 | R66: 1
A68: 90+kg/198+lb Open Women Raw APF | E68: =IF(ISBLANK(A68),"",D68*2.2046) -> 0 | H68: =IF(ISBLANK(A68),"",G68*2.2046) -> 0 | J68: =IF(ISBLANK(A68),"",I68*2.2046) -> 0 | L68: =IF(ISBLANK(A68),"",K68*2.2046) -> 0 | M68: =IF(ISBLANK(A68),"",G68+I68+K68) -> 0 | N68: =IF(ISBLANK(A68),"",M68*2.2046) -> 0 | O68: =IF(ISBLANK(A68),"",M68*P68*Q68) ->  | P68: =IF(ISNUMBER(C68),VLOOKUP(C68,af,2),"") ->  | Q68: =IF(ISNUMBER(D68),IF(LEFT(F68,1)="M",VLOOKUP(D68,mwf,2),VLOOKUP(D68,wwf,2)),"") -> 
A69: Emma Hogan | B69: UT | C69: 34 | D69: 93.2 | E69: 205.46872 | F69: F-RO | G69: 107.5 | H69: 236.9945 | I69: 90 | J69: 198.414 | K69: 130 | L69: 286.598 | M69: 327.5 | N69: 722.0065 | O69: 459.4825 | P69: 1 | Q69: 1.403 | R69: 1
E70: =IF(ISBLANK(A70),"",D70*2.2046) ->  | H70: =IF(ISBLANK(A70),"",G70*2.2046) ->  | J70: =IF(ISBLANK(A70),"",I70*2.2046) ->  | L70: =IF(ISBLANK(A70),"",K70*2.2046) ->  | M70: =IF(ISBLANK(A70),"",G70+I70+K70) ->  | N70: =IF(ISBLANK(A70),"",M70*2.2046) ->  | O70: =IF(ISBLANK(A70),"",M70*P70*Q70) ->  | P70: =IF(ISNUMBER(C70),VLOOKUP(C70,af,2),"") ->  | Q70: =IF(ISNUMBER(D70),IF(LEFT(F70,1)="M",VLOOKUP(D70,mwf,2),VLOOKUP(D70,wwf,2)),"") -> 
A71: Men | E71: =IF(ISBLANK(A71),"",D71*2.2046) -> 0 | H71: =IF(ISBLANK(A71),"",G71*2.2046) -> 0 | J71: =IF(ISBLANK(A71),"",I71*2.2046) -> 0 | L71: =IF(ISBLANK(A71),"",K71*2.2046) -> 0 | M71: =IF(ISBLANK(A71),"",G71+I71+K71) -> 0 | N71: =IF(ISBLANK(A71),"",M71*2.2046) -> 0 | O71: =IF(ISBLANK(A71),"",M71*P71*Q71) ->  | P71: =IF(ISNUMBER(C71),VLOOKUP(C71,af,2),"") ->  | Q71: =IF(ISNUMBER(D71),IF(LEFT(F71,1)="M",VLOOKUP(D71,mwf,2),VLOOKUP(D71,wwf,2)),"") -> 
A72: 75kg/165.4lb Junior (20-23) Men Classic Raw AAPF | E72: =IF(ISBLANK(A72),"",D72*2.2046) -> 0 | H72: =IF(ISBLANK(A72),"",G72*2.2046) -> 0 | J72: =IF(ISBLANK(A72),"",I72*2.2046) -> 0 | L72: =IF(ISBLANK(A72),"",K72*2.2046) -> 0 | M72: =IF(ISBLANK(A72),"",G72+I72+K72) -> 0 | N72: =IF(ISBLANK(A72),"",M72*2.2046) -> 0 | O72: =IF(ISBLANK(A72),"",M72*P72*Q72) ->  | P72: =IF(ISNUMBER(C72),VLOOKUP(C72,af,2),"") ->  | Q72: =IF(ISNUMBER(D72),IF(LEFT(F72,1)="M",VLOOKUP(D72,mwf,2),VLOOKUP(D72,wwf,2)),"") -> 
A73: Austin Rawls | B73: UT | C73: 22 | D73: 74.2 | E73: 163.58132 | F73: M-CRJR | G73: 147.5 | H73: 325.1785 | I73: 127.5 | J73: 281.0865 | K73: 197.5 | L73: 435.4085 | M73: 472.5 | N73: 1041.6735 | O73: 540.2187 | P73: 1.01 | Q73: 1.132 | R73: 1
A75: 100.0kg/220.4lb Open Men Classic Raw AAPF | C75: 55 | E75: 0 | H75: 0 | J75: 0 | L75: 0 | M75: 0 | N75: 0 | P75: 1.225
A76: Michael Carlisle | B76: UT | C76: 55 | D76: 96 | E76: 211.6416 | F76: M-CRO | G76: 185 | H76: 407.851 | I76: 110 | J76: 242.506 | K76: 180 | L76: 396.828 | M76: 475 | N76: 1047.185 | O76: 542.3075 | P76: 1.225 | Q76: 0.932 | R76: 1
A78: 110.0kg/242lb Open Men Classic Raw AAPF | E78: =IF(ISBLANK(A78),"",D78*2.2046) -> 0 | H78: =IF(ISBLANK(A78),"",G78*2.2046) -> 0 | J78: =IF(ISBLANK(A78),"",I78*2.2046) -> 0 | L78: =IF(ISBLANK(A78),"",K78*2.2046) -> 0 | M78: =IF(ISBLANK(A78),"",G78+I78+K78) -> 0 | N78: =IF(ISBLANK(A78),"",M78*2.2046) -> 0 | O78: =IF(ISBLANK(A78),"",M78*P78*Q78) ->  | P78: =IF(ISNUMBER(C78),VLOOKUP(C78,af,2),"") ->  | Q78: =IF(ISNUMBER(D78),IF(LEFT(F78,1)="M",VLOOKUP(D78,mwf,2),VLOOKUP(D78,wwf,2)),"") -> 
A79: Nick Motta | B79: UT | C79: 32 | D79: 105.6 | E79: =IF(ISBLANK(A79),"",D79*2.2046) -> 232.80576 | F79: M-CRO | G79: 230 | H79: =IF(ISBLANK(A79),"",G79*2.2046) -> 507.058 | I79: 147.5 | J79: =IF(ISBLANK(A79),"",I79*2.2046) -> 325.1785 | K79: 220 | L79: =IF(ISBLANK(A79),"",K79*2.2046) -> 485.012 | M79: =IF(ISBLANK(A79),"",G79+I79+K79) -> 597.5 | N79: =IF(ISBLANK(A79),"",M79*2.2046) -> 1317.2485 | O79: =IF(ISBLANK(A79),"",M79*P79*Q79) -> 535.9575 | P79: =IF(ISNUMBER(C79),VLOOKUP(C79,af,2),"") -> 1 | Q79: =IF(ISNUMBER(D79),IF(LEFT(F79,1)="M",VLOOKUP(D79,mwf,2),VLOOKUP(D79,wwf,2)),"") -> 0.897 | R79: 1
A81: 110.0kg/242lb SubMaster Men Classic Raw APF | E81: =IF(ISBLANK(A81),"",D81*2.2046) -> 0 | H81: =IF(ISBLANK(A81),"",G81*2.2046) -> 0 | J81: =IF(ISBLANK(A81),"",I81*2.2046) -> 0 | L81: =IF(ISBLANK(A81),"",K81*2.2046) -> 0 | M81: =IF(ISBLANK(A81),"",G81+I81+K81) -> 0 | N81: =IF(ISBLANK(A81),"",M81*2.2046) -> 0 | O81: =IF(ISBLANK(A81),"",M81*P81*Q81) ->  | P81: =IF(ISNUMBER(C81),VLOOKUP(C81,af,2),"") ->  | Q81: =IF(ISNUMBER(D81),IF(LEFT(F81,1)="M",VLOOKUP(D81,mwf,2),VLOOKUP(D81,wwf,2)),"") -> 
A82: Haili Kupuka'a | B82: UT | C82: 37 | D82: 108.7 | E82: 239.64002 | F82: M-CRSM | G82: 175 | H82: 385.805 | I82: 152.5 | J82: 336.2015 | K82: 215 | L82: 473.989 | M82: 542.5 | N82: 1195.9955 | O82: 482.2825 | P82: 1 | Q82: 0.889 | R82: 1
A84: 125.0kg/275lb Open Men Classic Raw AAPF | E84: =IF(ISBLANK(A84),"",D84*2.2046) -> 0 | H84: =IF(ISBLANK(A84),"",G84*2.2046) -> 0 | J84: =IF(ISBLANK(A84),"",I84*2.2046) -> 0 | L84: =IF(ISBLANK(A84),"",K84*2.2046) -> 0 | M84: =IF(ISBLANK(A84),"",G84+I84+K84) -> 0 | N84: =IF(ISBLANK(A84),"",M84*2.2046) -> 0 | O84: =IF(ISBLANK(A84),"",M84*P84*Q84) ->  | P84: =IF(ISNUMBER(C84),VLOOKUP(C84,af,2),"") ->  | Q84: =IF(ISNUMBER(D84),IF(LEFT(F84,1)="M",VLOOKUP(D84,mwf,2),VLOOKUP(D84,wwf,2)),"") -> 
A85: Daniel Schluter | B85: ID | C85: 26 | D85: 112.9 | E85: =IF(ISBLANK(A85),"",D85*2.2046) -> 248.89934 | F85: M-CRO | G85: 210 | H85: =IF(ISBLANK(A85),"",G85*2.2046) -> 462.966 | I85: 150 | J85: =IF(ISBLANK(A85),"",I85*2.2046) -> 330.69 | K85: 240 | L85: =IF(ISBLANK(A85),"",K85*2.2046) -> 529.104 | M85: =IF(ISBLANK(A85),"",G85+I85+K85) -> 600 | N85: =IF(ISBLANK(A85),"",M85*2.2046) -> 1322.76 | O85: =IF(ISBLANK(A85),"",M85*P85*Q85) -> 526.8 | P85: =IF(ISNUMBER(C85),VLOOKUP(C85,af,2),"") -> 1 | Q85: =IF(ISNUMBER(D85),IF(LEFT(F85,1)="M",VLOOKUP(D85,mwf,2),VLOOKUP(D85,wwf,2)),"") -> 0.878 | R85: 1
A87: Powerlifting: Single Ply Division
A88: Men | E88: =IF(ISBLANK(A88),"",D88*2.2046) -> 0 | H88: =IF(ISBLANK(A88),"",G88*2.2046) -> 0 | J88: =IF(ISBLANK(A88),"",I88*2.2046) -> 0 | L88: =IF(ISBLANK(A88),"",K88*2.2046) -> 0 | M88: =IF(ISBLANK(A88),"",G88+I88+K88) -> 0 | N88: =IF(ISBLANK(A88),"",M88*2.2046) -> 0 | O88: =IF(ISBLANK(A88),"",M88*P88*Q88) ->  | P88: =IF(ISNUMBER(C88),VLOOKUP(C88,af,2),"") ->  | Q88: =IF(ISNUMBER(D88),IF(LEFT(F88,1)="M",VLOOKUP(D88,mwf,2),VLOOKUP(D88,wwf,2)),"") -> 
A89: 90.0kg/198.4lb Junior(20-23) Men Single Ply AAPF | E89: =IF(ISBLANK(A89),"",D89*2.2046) -> 0 | H89: =IF(ISBLANK(A89),"",G89*2.2046) -> 0 | J89: =IF(ISBLANK(A89),"",I89*2.2046) -> 0 | L89: =IF(ISBLANK(A89),"",K89*2.2046) -> 0 | M89: =IF(ISBLANK(A89),"",G89+I89+K89) -> 0 | N89: =IF(ISBLANK(A89),"",M89*2.2046) -> 0 | O89: =IF(ISBLANK(A89),"",M89*P89*Q89) ->  | P89: =IF(ISNUMBER(C89),VLOOKUP(C89,af,2),"") ->  | Q89: =IF(ISNUMBER(D89),IF(LEFT(F89,1)="M",VLOOKUP(D89,mwf,2),VLOOKUP(D89,wwf,2)),"") -> 
A90: Anthony Campo | B90: UT | C90: 21 | D90: 84.2 | E90: 185.62732 | F90: M-SPJR | G90: 227.5 | H90: 501.5465 | I90: 185 | J90: 407.851 | K90: 250 | L90: 551.15 | M90: 662.5 | N90: 1460.5475 | O90: 685.88625 | P90: 1.02 | Q90: 1.015 | R90: 1
E91: =IF(ISBLANK(A91),"",D91*2.2046) ->  | H91: =IF(ISBLANK(A91),"",G91*2.2046) ->  | J91: =IF(ISBLANK(A91),"",I91*2.2046) ->  | L91: =IF(ISBLANK(A91),"",K91*2.2046) ->  | M91: =IF(ISBLANK(A91),"",G91+I91+K91) ->  | N91: =IF(ISBLANK(A91),"",M91*2.2046) ->  | O91: =IF(ISBLANK(A91),"",M91*P91*Q91) ->  | P91: =IF(ISNUMBER(C91),VLOOKUP(C91,af,2),"") ->  | Q91: =IF(ISNUMBER(D91),IF(LEFT(F91,1)="M",VLOOKUP(D91,mwf,2),VLOOKUP(D91,wwf,2)),"") -> 
A92: Bench Press: Raw Division
A93: Women | E93: =IF(ISBLANK(A93),"",D93*2.2046) -> 0 | H93: =IF(ISBLANK(A93),"",G93*2.2046) -> 0 | J93: =IF(ISBLANK(A93),"",I93*2.2046) -> 0 | L93: =IF(ISBLANK(A93),"",K93*2.2046) -> 0 | M93: =IF(ISBLANK(A93),"",G93+I93+K93) -> 0 | N93: =IF(ISBLANK(A93),"",M93*2.2046) -> 0 | O93: =IF(ISBLANK(A93),"",M93*P93*Q93) ->  | P93: =IF(ISNUMBER(C93),VLOOKUP(C93,af,2),"") ->  | Q93: =IF(ISNUMBER(D93),IF(LEFT(F93,1)="M",VLOOKUP(D93,mwf,2),VLOOKUP(D93,wwf,2)),"") -> 
A94: 75kg/165.4lb Teen (16-17) Women Raw AAPF | E94: 0 | H94: 0 | J94: 0 | L94: 0 | M94: 0 | N94: 0
A95: Taylor Vigil | B95: UT | C95: 17 | E95: 0 | F95: F-RT3 | H95: 0 | I95: 62.5 | J95: 137.7875 | L95: 0 | M95: 62.5 | N95: 137.7875 | P95: 1.08 | R95: 1
A97: 90kg/198lb Open Women Raw AAPF | E97: =IF(ISBLANK(A97),"",D97*2.2046) -> 0 | H97: =IF(ISBLANK(A97),"",G97*2.2046) -> 0 | J97: =IF(ISBLANK(A97),"",I97*2.2046) -> 0 | L97: =IF(ISBLANK(A97),"",K97*2.2046) -> 0 | M97: =IF(ISBLANK(A97),"",G97+I97+K97) -> 0 | N97: =IF(ISBLANK(A97),"",M97*2.2046) -> 0 | O97: =IF(ISBLANK(A97),"",M97*P97*Q97) ->  | P97: =IF(ISNUMBER(C97),VLOOKUP(C97,af,2),"") ->  | Q97: =IF(ISNUMBER(D97),IF(LEFT(F97,1)="M",VLOOKUP(D97,mwf,2),VLOOKUP(D97,wwf,2)),"") -> 
A98: Mia Ristovska | B98: UT | C98: 32 | E98: 0 | F98: F-RO | H98: 0 | I98: 60 | J98: 132.276 | L98: 0 | M98: 60 | N98: 132.276 | P98: 1 | R98: 1
E99: =IF(ISBLANK(A99),"",D99*2.2046) ->  | H99: =IF(ISBLANK(A99),"",G99*2.2046) ->  | J99: =IF(ISBLANK(A99),"",I99*2.2046) ->  | L99: =IF(ISBLANK(A99),"",K99*2.2046) ->  | M99: =IF(ISBLANK(A99),"",G99+I99+K99) ->  | N99: =IF(ISBLANK(A99),"",M99*2.2046) ->  | O99: =IF(ISBLANK(A99),"",M99*P99*Q99) ->  | P99: =IF(ISNUMBER(C99),VLOOKUP(C99,af,2),"") ->  | Q99: =IF(ISNUMBER(D99),IF(LEFT(F99,1)="M",VLOOKUP(D99,mwf,2),VLOOKUP(D99,wwf,2)),"") -> 
A100: Men | E100: =IF(ISBLANK(A100),"",D100*2.2046) -> 0 | H100: =IF(ISBLANK(A100),"",G100*2.2046) -> 0 | J100: =IF(ISBLANK(A100),"",I100*2.2046) -> 0 | L100: =IF(ISBLANK(A100),"",K100*2.2046) -> 0 | M100: =IF(ISBLANK(A100),"",G100+I100+K100) -> 0 | N100: =IF(ISBLANK(A100),"",M100*2.2046) -> 0 | O100: =IF(ISBLANK(A100),"",M100*P100*Q100) ->  | P100: =IF(ISNUMBER(C100),VLOOKUP(C100,af,2),"") ->  | Q100: =IF(ISNUMBER(D100),IF(LEFT(F100,1)="M",VLOOKUP(D100,mwf,2),VLOOKUP(D100,wwf,2)),"") -> 
A101: 90.0kg/198.4lb Open Men Raw APF | E101: =IF(ISBLANK(A101),"",D101*2.2046) -> 0 | H101: =IF(ISBLANK(A101),"",G101*2.2046) -> 0 | J101: =IF(ISBLANK(A101),"",I101*2.2046) -> 0 | L101: =IF(ISBLANK(A101),"",K101*2.2046) -> 0 | M101: =IF(ISBLANK(A101),"",G101+I101+K101) -> 0 | N101: =IF(ISBLANK(A101),"",M101*2.2046) -> 0 | O101: =IF(ISBLANK(A101),"",M101*P101*Q101) ->  | P101: =IF(ISNUMBER(C101),VLOOKUP(C101,af,2),"") ->  | Q101: =IF(ISNUMBER(D101),IF(LEFT(F101,1)="M",VLOOKUP(D101,mwf,2),VLOOKUP(D101,wwf,2)),"") -> 
A102: Greg Griffith | B102: UT | C102: 30 | E102: =IF(ISBLANK(A102),"",D102*2.2046) -> 0 | F102: M-RO | H102: =IF(ISBLANK(A102),"",G102*2.2046) -> 0 | I102: 207.5 | J102: =IF(ISBLANK(A102),"",I102*2.2046) -> 457.4545 | L102: =IF(ISBLANK(A102),"",K102*2.2046) -> 0 | M102: =IF(ISBLANK(A102),"",G102+I102+K102) -> 207.5 | N102: =IF(ISBLANK(A102),"",M102*2.2046) -> 457.4545 | O102: =IF(ISBLANK(A102),"",M102*P102*Q102) ->  | P102: =IF(ISNUMBER(C102),VLOOKUP(C102,af,2),"") -> 1 | Q102: =IF(ISNUMBER(D102),IF(LEFT(F102,1)="M",VLOOKUP(D102,mwf,2),VLOOKUP(D102,wwf,2)),"") ->  | R102: 1
A104: 125.0kg/275lb Master (45-49) Men Raw APF | E104: =IF(ISBLANK(A104),"",D104*2.2046) -> 0 | H104: =IF(ISBLANK(A104),"",G104*2.2046) -> 0 | J104: =IF(ISBLANK(A104),"",I104*2.2046) -> 0 | L104: =IF(ISBLANK(A104),"",K104*2.2046) -> 0 | M104: =IF(ISBLANK(A104),"",G104+I104+K104) -> 0 | N104: =IF(ISBLANK(A104),"",M104*2.2046) -> 0 | O104: =IF(ISBLANK(A104),"",M104*P104*Q104) ->  | P104: =IF(ISNUMBER(C104),VLOOKUP(C104,af,2),"") ->  | Q104: =IF(ISNUMBER(D104),IF(LEFT(F104,1)="M",VLOOKUP(D104,mwf,2),VLOOKUP(D104,wwf,2)),"") -> 
A105: Andy Pepito | B105: UT | C105: 48 | E105: 0 | F105: M-RM2 | H105: 0 | I105: 172.5 | J105: 380.2935 | L105: 0 | M105: 172.5 | N105: 380.2935 | P105: 1.097 | R105: 1
E106: =IF(ISBLANK(A106),"",D106*2.2046) ->  | H106: =IF(ISBLANK(A106),"",G106*2.2046) ->  | J106: =IF(ISBLANK(A106),"",I106*2.2046) ->  | L106: =IF(ISBLANK(A106),"",K106*2.2046) ->  | M106: =IF(ISBLANK(A106),"",G106+I106+K106) ->  | N106: =IF(ISBLANK(A106),"",M106*2.2046) ->  | O106: =IF(ISBLANK(A106),"",M106*P106*Q106) ->  | P106: =IF(ISNUMBER(C106),VLOOKUP(C106,af,2),"") ->  | Q106: =IF(ISNUMBER(D106),IF(LEFT(F106,1)="M",VLOOKUP(D106,mwf,2),VLOOKUP(D106,wwf,2)),"") -> 
A107: Bench Press: Single Ply Division
A108: Men | E108: =IF(ISBLANK(A108),"",D108*2.2046) -> 0 | H108: =IF(ISBLANK(A108),"",G108*2.2046) -> 0 | J108: =IF(ISBLANK(A108),"",I108*2.2046) -> 0 | L108: =IF(ISBLANK(A108),"",K108*2.2046) -> 0 | M108: =IF(ISBLANK(A108),"",G108+I108+K108) -> 0 | N108: =IF(ISBLANK(A108),"",M108*2.2046) -> 0 | O108: =IF(ISBLANK(A108),"",M108*P108*Q108) ->  | P108: =IF(ISNUMBER(C108),VLOOKUP(C108,af,2),"") ->  | Q108: =IF(ISNUMBER(D108),IF(LEFT(F108,1)="M",VLOOKUP(D108,mwf,2),VLOOKUP(D108,wwf,2)),"") -> 
A109: 100.0kg/220lb Open Men Single Ply APF | E109: 0 | H109: 0 | J109: 0 | L109: 0 | M109: 0 | N109: 0
A110: Tommy Ponzio | B110: UT | C110: 46 | E110: =IF(ISBLANK(A110),"",D110*2.2046) -> 0 | F110: M-SPM2 | H110: =IF(ISBLANK(A110),"",G110*2.2046) -> 0 | I110: 257.5 | J110: =IF(ISBLANK(A110),"",I110*2.2046) -> 567.6845 | L110: =IF(ISBLANK(A110),"",K110*2.2046) -> 0 | M110: =IF(ISBLANK(A110),"",G110+I110+K110) -> 257.5 | N110: =IF(ISBLANK(A110),"",M110*2.2046) -> 567.6845 | O110: =IF(ISBLANK(A110),"",M110*P110*Q110) ->  | P110: =IF(ISNUMBER(C110),VLOOKUP(C110,af,2),"") -> 1.068 | Q110: =IF(ISNUMBER(D110),IF(LEFT(F110,1)="M",VLOOKUP(D110,mwf,2),VLOOKUP(D110,wwf,2)),"") ->  | R110: 1
A112: Deadlift: Raw Division
A113: Women | E113: =IF(ISBLANK(A113),"",D113*2.2046) -> 0 | H113: =IF(ISBLANK(A113),"",G113*2.2046) -> 0 | J113: =IF(ISBLANK(A113),"",I113*2.2046) -> 0 | L113: =IF(ISBLANK(A113),"",K113*2.2046) -> 0 | M113: =IF(ISBLANK(A113),"",G113+I113+K113) -> 0 | N113: =IF(ISBLANK(A113),"",M113*2.2046) -> 0 | O113: =IF(ISBLANK(A113),"",M113*P113*Q113) ->  | P113: =IF(ISNUMBER(C113),VLOOKUP(C113,af,2),"") ->  | Q113: =IF(ISNUMBER(D113),IF(LEFT(F113,1)="M",VLOOKUP(D113,mwf,2),VLOOKUP(D113,wwf,2)),"") -> 
A114: 75kg/165.4lb Teen (16-17) Women Raw AAPF | E114: =IF(ISBLANK(A114),"",D114*2.2046) -> 0 | H114: =IF(ISBLANK(A114),"",G114*2.2046) -> 0 | J114: =IF(ISBLANK(A114),"",I114*2.2046) -> 0 | L114: =IF(ISBLANK(A114),"",K114*2.2046) -> 0 | M114: =IF(ISBLANK(A114),"",G114+I114+K114) -> 0 | N114: =IF(ISBLANK(A114),"",M114*2.2046) -> 0 | O114: =IF(ISBLANK(A114),"",M114*P114*Q114) ->  | P114: =IF(ISNUMBER(C114),VLOOKUP(C114,af,2),"") ->  | Q114: =IF(ISNUMBER(D114),IF(LEFT(F114,1)="M",VLOOKUP(D114,mwf,2),VLOOKUP(D114,wwf,2)),"") -> 
A115: Taylor Vigil | B115: UT | C115: 17 | E115: 0 | F115: F-RT3 | H115: 0 | J115: 0 | K115: 140 | L115: 308.644 | M115: 140 | N115: 308.644 | P115: 1.08 | R115: 1
A117: 90kg/198lb Open Women Raw AAPF | E117: =IF(ISBLANK(A117),"",D117*2.2046) -> 0 | H117: =IF(ISBLANK(A117),"",G117*2.2046) -> 0 | J117: =IF(ISBLANK(A117),"",I117*2.2046) -> 0 | L117: =IF(ISBLANK(A117),"",K117*2.2046) -> 0 | M117: =IF(ISBLANK(A117),"",G117+I117+K117) -> 0 | N117: =IF(ISBLANK(A117),"",M117*2.2046) -> 0 | O117: =IF(ISBLANK(A117),"",M117*P117*Q117) ->  | P117: =IF(ISNUMBER(C117),VLOOKUP(C117,af,2),"") ->  | Q117: =IF(ISNUMBER(D117),IF(LEFT(F117,1)="M",VLOOKUP(D117,mwf,2),VLOOKUP(D117,wwf,2)),"") -> 
A118: Mia Ristovska | B118: UT | C118: 32 | E118: 0 | F118: F-RO | H118: 0 | J118: 0 | K118: 137.5 | L118: 303.1325 | M118: 137.5 | N118: 303.1325 | P118: 1 | R118: 1
A120: Men | E120: =IF(ISBLANK(A120),"",D120*2.2046) -> 0 | H120: =IF(ISBLANK(A120),"",G120*2.2046) -> 0 | J120: =IF(ISBLANK(A120),"",I120*2.2046) -> 0 | L120: =IF(ISBLANK(A120),"",K120*2.2046) -> 0 | M120: =IF(ISBLANK(A120),"",G120+I120+K120) -> 0 | N120: =IF(ISBLANK(A120),"",M120*2.2046) -> 0 | O120: =IF(ISBLANK(A120),"",M120*P120*Q120) ->  | P120: =IF(ISNUMBER(C120),VLOOKUP(C120,af,2),"") ->  | Q120: =IF(ISNUMBER(D120),IF(LEFT(F120,1)="M",VLOOKUP(D120,mwf,2),VLOOKUP(D120,wwf,2)),"") -> 
A121: 82.5kg/181lb Open Men Raw APF | E121: =IF(ISBLANK(A121),"",D121*2.2046) -> 0 | H121: =IF(ISBLANK(A121),"",G121*2.2046) -> 0 | J121: =IF(ISBLANK(A121),"",I121*2.2046) -> 0 | L121: =IF(ISBLANK(A121),"",K121*2.2046) -> 0 | M121: =IF(ISBLANK(A121),"",G121+I121+K121) -> 0 | N121: =IF(ISBLANK(A121),"",M121*2.2046) -> 0 | O121: =IF(ISBLANK(A121),"",M121*P121*Q121) ->  | P121: =IF(ISNUMBER(C121),VLOOKUP(C121,af,2),"") ->  | Q121: =IF(ISNUMBER(D121),IF(LEFT(F121,1)="M",VLOOKUP(D121,mwf,2),VLOOKUP(D121,wwf,2)),"") -> 
A122: Steven Seril | B122: UT | C122: 27 | E122: 0 | F122: M-RO | H122: 0 | J122: 0 | K122: 215 | L122: 473.989 | M122: 215 | N122: 473.989 | P122: 1 | R122: 1
A124: 125.0kg/275lb Master (45-49) Men Raw APF | E124: =IF(ISBLANK(A124),"",D124*2.2046) -> 0 | H124: =IF(ISBLANK(A124),"",G124*2.2046) -> 0 | J124: =IF(ISBLANK(A124),"",I124*2.2046) -> 0 | L124: =IF(ISBLANK(A124),"",K124*2.2046) -> 0 | M124: =IF(ISBLANK(A124),"",G124+I124+K124) -> 0 | N124: =IF(ISBLANK(A124),"",M124*2.2046) -> 0 | O124: =IF(ISBLANK(A124),"",M124*P124*Q124) ->  | P124: =IF(ISNUMBER(C124),VLOOKUP(C124,af,2),"") ->  | Q124: =IF(ISNUMBER(D124),IF(LEFT(F124,1)="M",VLOOKUP(D124,mwf,2),VLOOKUP(D124,wwf,2)),"") -> 
A125: Andy Pepito | B125: UT | C125: 48 | E125: 0 | F125: M-RM2 | H125: 0 | J125: 0 | K125: 235 | L125: 518.081 | M125: 235 | N125: 518.081 | P125: 1.097 | R125: 1
A127: Best Lifters:
A128: Powerlift
A129: Womens Raw Open: Hilary Murray
A130: Womens Raw Junior: Allison West
A131: Mens Raw Open: Ethan Radin
A132: Mens Classic Raw Open: Michael Carlisle
A134: Judges:
A135: Jon Cunningham
A136: Chris McGrail
A137: Sean Olsen
A138: Scott Mecham

Sheet Age Factors
A1: 0 | B1: 1
A2: 14 | B2: 1.23
A3: 15 | B3: 1.18
A4: 16 | B4: 1.13
A5: 17 | B5: 1.08
A6: 18 | B6: 1.06
A7: 20 | B7: 1.03
A8: 21 | B8: 1.02
A9: 22 | B9: 1.01
A10: 23 | B10: 1
A11: 24 | B11: 1
A12: 25 | B12: 1
A13: 26 | B13: 1
A14: 27 | B14: 1
A15: 28 | B15: 1
A16: 29 | B16: 1
A17: 30 | B17: 1
A18: 31 | B18: 1
A19: 32 | B19: 1
A20: 33 | B20: 1
A21: 34 | B21: 1
A22: 35 | B22: 1
A23: 36 | B23: 1
A24: 37 | B24: 1
A25: 38 | B25: 1
A26: 39 | B26: 1
A27: 40 | B27: 1
A28: 41 | B28: 1.01
A29: 42 | B29: 1.02
A30: 43 | B30: 1.031
A31: 44 | B31: 1.043
A32: 45 | B32: 1.055
A33: 46 | B33: 1.068
A34: 47 | B34: 1.082
A35: 48 | B35: 1.097
A36: 49 | B36: 1.113
A37: 50 | B37: 1.13
A38: 51 | B38: 1.147
A39: 52 | B39: 1.165
A40: 53 | B40: 1.184
A41: 54 | B41: 1.204
A42: 55 | B42: 1.225
A43: 56 | B43: 1.246
A44: 57 | B44: 1.268
A45: 58 | B45: 1.291
A46: 59 | B46: 1.315
A47: 60 | B47: 1.34
A48: 61 | B48: 1.366
A49: 62 | B49: 1.393
A50: 63 | B50: 1.421
A51: 64 | B51: 1.45
A52: 65 | B52: 1.48
A53: 66 | B53: 1.511
A54: 67 | B54: 1.543
A55: 68 | B55: 1.576
A56: 69 | B56: 1.61
A57: 70 | B57: 1.645
A58: 71 | B58: 1.681
A59: 72 | B59: 1.718
A60: 73 | B60: 1.756
A61: 74 | B61: 1.795
A62: 75 | B62: 1.835
A63: 76 | B63: 1.876
A64: 77 | B64: 1.918
A65: 78 | B65: 1.961
A66: 79 | B66: 2.005
A67: 80 | B67: 2.05

Sheet Mens Wght Factor
A1: 0 | B1: 1.955
A2: 50 | B2: 1.955
A3: 50.25 | B3: 1.937
A4: 50.5 | B4: 1.92
A5: 50.75 | B5: 1.902
A6: 51 | B6: 1.885
A7: 51.25 | B7: 1.867
A8: 51.5 | B8: 1.851
A9: 51.75 | B9: 1.835
A10: 52 | B10: 1.818
A11: 52.25 | B11: 1.803
A12: 52.5 | B12: 1.788
A13: 52.75 | B13: 1.773
A14: 53 | B14: 1.758
A15: 53.25 | B15: 1.743
A16: 53.5 | B16: 1.727
A17: 53.75 | B17: 1.712
A18: 54 | B18: 1.697
A19: 54.25 | B19: 1.682
A20: 54.5 | B20: 1.667
A21: 54.75 | B21: 1.655
A22: 55 | B22: 1.642
A23: 55.25 | B23: 1.63
A24: 55.5 | B24: 1.617
A25: 55.75 | B25: 1.605
A26: 56 | B26: 1.593
A27: 56.25 | B27: 1.58
A28: 56.5 | B28: 1.568
A29: 56.75 | B29: 1.555
A30: 57 | B30: 1.543
A31: 57.25 | B31: 1.531
A32: 57.5 | B32: 1.518
A33: 57.75 | B33: 1.506
A34: 58 | B34: 1.497
A35: 58.25 | B35: 1.488
A36: 58.5 | B36: 1.478
A37: 58.75 | B37: 1.469
A38: 59 | B38: 1.46
A39: 59.25 | B39: 1.451
A40: 59.5 | B40: 1.442
A41: 59.75 | B41: 1.432
A42: 60 | B42: 1.423
A43: 60.25 | B43: 1.414
A44: 60.5 | B44: 1.405
A45: 60.75 | B45: 1.398
A46: 61 | B46: 1.391
A47: 61.25 | B47: 1.384
A48: 61.5 | B48: 1.377
A49: 61.75 | B49: 1.371
A50: 62 | B50: 1.364
A51: 62.25 | B51: 1.357
A52: 62.5 | B52: 1.35
A53: 62.75 | B53: 1.343
A54: 63 | B54: 1.336
A55: 63.25 | B55: 1.329
A56: 63.5 | B56: 1.322
A57: 63.75 | B57: 1.317
A58: 64 | B58: 1.311
A59: 64.25 | B59: 1.306
A60: 64.5 | B60: 1.3
A61: 64.75 | B61: 1.295
A62: 65 | B62: 1.29
A63: 65.25 | B63: 1.284
A64: 65.5 | B64: 1.279
A65: 65.75 | B65: 1.273
A66: 66 | B66: 1.268
A67: 66.25 | B67: 1.263
A68: 66.5 | B68: 1.257
A69: 66.75 | B69: 1.252
A70: 67 | B70: 1.246
A71: 67.25 | B71: 1.242
A72: 67.5 | B72: 1.237
A73: 67.75 | B73: 1.233
A74: 68 | B74: 1.228
A75: 68.25 | B75: 1.224
A76: 68.5 | B76: 1.219
A77: 68.75 | B77: 1.215
A78: 69 | B78: 1.21
A79: 69.25 | B79: 1.206
A80: 69.5 | B80: 1.202
A81: 69.75 | B81: 1.198
A82: 70 | B82: 1.194
A83: 70.25 | B83: 1.19
A84: 70.5 | B84: 1.186
A85: 70.75 | B85: 1.182
A86: 71 | B86: 1.178
A87: 71.25 | B87: 1.174
A88: 71.5 | B88: 1.17
A89: 71.75 | B89: 1.166
A90: 72 | B90: 1.162
A91: 72.25 | B91: 1.158
A92: 72.5 | B92: 1.155
A93: 72.75 | B93: 1.151
A94: 73 | B94: 1.147
A95: 73.25 | B95: 1.143
A96: 73.5 | B96: 1.139
A97: 73.75 | B97: 1.136
A98: 74 | B98: 1.132
A99: 74.25 | B99: 1.128
A100: 74.5 | B100: 1.124
A101: 74.75 | B101: 1.12
A102: 75 | B102: 1.117
A103: 75.25 | B103: 1.114
A104: 75.5 | B104: 1.11
A105: 75.75 | B105: 1.107
A106: 76 | B106: 1.103
A107: 76.25 | B107: 1.1
A108: 76.5 | B108: 1.106
A109: 76.75 | B109: 1.093
A110: 77 | B110: 1.09
A111: 77.25 | B111: 1.087
A112: 77.5 | B112: 1.084
A113: 77.75 | B113: 1.081
A114: 78 | B114: 1.078
A115: 78.25 | B115: 1.075
A116: 78.5 | B116: 1.072
A117: 78.75 | B117: 1.069
A118: 79 | B118: 1.066
A119: 79.25 | B119: 1.063
A120: 79.5 | B120: 1.06
A121: 79.75 | B121: 1.057
A122: 80 | B122: 1.054
A123: 80.25 | B123: 1.051
A124: 80.5 | B124: 1.048
A125: 80.75 | B125: 1.046
A126: 81 | B126: 1.044
A127: 81.25 | B127: 1.041
A128: 81.5 | B128: 1.039
A129: 81.75 | B129: 1.036
A130: 82 | B130: 1.034
A131: 82.25 | B131: 1.031
A132: 82.5 | B132: 1.029
A133: 82.75 | B133: 1.026
A134: 83 | B134: 1.024
A135: 83.25 | B135: 1.022
A136: 83.5 | B136: 1.019
A137: 83.75 | B137: 1.017
A138: 84 | B138: 1.015
A139: 84.25 | B139: 1.013
A140: 84.5 | B140: 1.011
A141: 84.75 | B141: 1.008
A142: 85 | B142: 1.006
A143: 85.25 | B143: 1.004
A144: 85.5 | B144: 1.002
A145: 85.75 | B145: 1
A146: 86 | B146: 0.998
A147: 86.25 | B147: 0.996
A148: 86.5 | B148: 0.994
A149: 86.75 | B149: 0.992
A150: 87 | B150: 0.99
A151: 87.25 | B151: 0.988
A152: 87.5 | B152: 0.987
A153: 87.75 | B153: 0.985
A154: 88 | B154: 0.983
A155: 88.25 | B155: 0.981
A156: 88.5 | B156: 0.979
A157: 88.75 | B157: 0.978
A158: 89 | B158: 0.976
A159: 89.25 | B159: 0.974
A160: 89.5 | B160: 0.972
A161: 89.75 | B161: 0.97
A162: 90 | B162: 0.969
A163: 90.25 | B163: 0.967
A164: 90.5 | B164: 0.965
A165: 90.75 | B165: 0.963
A166: 91 | B166: 0.961
A167: 91.25 | B167: 0.96
A168: 91.5 | B168: 0.958
A169: 91.75 | B169: 0.956
A170: 92 | B170: 0.954
A171: 92.25 | B171: 0.952
A172: 92.5 | B172: 0.951
A173: 92.75 | B173: 0.95
A174: 93 | B174: 0.948
A175: 93.25 | B175: 0.947
A176: 93.5 | B176: 0.945
A177: 93.75 | B177: 0.944
A178: 94 | B178: 0.942
A179: 94.25 | B179: 0.941
A180: 94.5 | B180: 0.939
A181: 94.75 | B181: 0.938
A182: 95 | B182: 0.937
A183: 95.25 | B183: 0.935
A184: 95.5 | B184: 0.934
A185: 95.75 | B185: 0.933
A186: 96 | B186: 0.932
A187: 96.25 | B187: 0.931
A188: 96.5 | B188: 0.929
A189: 96.75 | B189: 0.928
A190: 97 | B190: 0.927
A191: 97.25 | B191: 0.926
A192: 97.5 | B192: 0.925
A193: 97.75 | B193: 0.924
A194: 98 | B194: 0.923
A195: 98.25 | B195: 0.922
A196: 98.5 | B196: 0.921
A197: 98.75 | B197: 0.92
A198: 99 | B198: 0.919
A199: 99.25 | B199: 0.918
A200: 99.5 | B200: 0.917
... 306 more rows

Sheet Womens Wght Factor
A1: 0 | B1: 3.145
A2: 40 | B2: 3.145
A3: 40.25 | B3: 3.105
A4: 40.5 | B4: 3.065
A5: 40.75 | B5: 3.025
A6: 41 | B6: 2.985
A7: 41.25 | B7: 2.95
A8: 41.5 | B8: 2.915
A9: 41.75 | B9: 2.882
A10: 42 | B10: 2.849
A11: 42.25 | B11: 2.817
A12: 42.5 | B12: 2.786
A13: 42.75 | B13: 2.759
A14: 43 | B14: 2.732
A15: 43.25 | B15: 2.706
A16: 43.5 | B16: 2.681
A17: 43.75 | B17: 2.656
A18: 44 | B18: 2.632
A19: 44.25 | B19: 2.61
A20: 44.5 | B20: 2.589
A21: 44.75 | B21: 2.567
A22: 45 | B22: 2.545
A23: 45.25 | B23: 2.523
A24: 45.5 | B24: 2.503
A25: 45.75 | B25: 2.483
A26: 46 | B26: 2.463
A27: 46.25 | B27: 2.443
A28: 46.5 | B28: 2.424
A29: 46.75 | B29: 2.405
A30: 47 | B30: 2.387
A31: 47.25 | B31: 2.369
A32: 47.5 | B32: 2.351
A33: 47.75 | B33: 2.333
A34: 48 | B34: 2.315
A35: 48.25 | B35: 2.297
A36: 48.5 | B36: 2.28
A37: 48.75 | B37: 2.263
A38: 49 | B38: 2.247
A39: 49.25 | B39: 2.231
A40: 49.5 | B40: 2.216
A41: 49.75 | B41: 2.202
A42: 50 | B42: 2.188
A43: 50.25 | B43: 2.174
A44: 50.5 | B44: 2.16
A45: 50.75 | B45: 2.146
A46: 51 | B46: 2.132
A47: 51.25 | B47: 2.119
A48: 51.5 | B48: 2.105
A49: 51.75 | B49: 2.092
A50: 52 | B50: 2.079
A51: 52.25 | B51: 2.066
A52: 52.5 | B52: 2.053
A53: 52.75 | B53: 2.041
A54: 53 | B54: 2.028
A55: 53.25 | B55: 2.016
A56: 53.5 | B56: 2.004
A57: 53.75 | B57: 1.994
A58: 54 | B58: 1.984
A59: 54.25 | B59: 1.974
A60: 54.5 | B60: 1.963
A61: 54.75 | B61: 1.953
A62: 55 | B62: 1.942
A63: 55.25 | B63: 1.932
A64: 55.5 | B64: 1.923
A65: 55.75 | B65: 1.914
A66: 56 | B66: 1.905
A67: 56.25 | B67: 1.896
A68: 56.5 | B68: 1.887
A69: 56.75 | B69: 1.878
A70: 57 | B70: 1.869
A71: 57.25 | B71: 1.86
A72: 57.5 | B72: 1.852
A73: 57.75 | B73: 1.845
A74: 58 | B74: 1.838
A75: 58.25 | B75: 1.83
A76: 58.5 | B76: 1.822
A77: 58.75 | B77: 1.815
A78: 59 | B78: 1.808
A79: 59.25 | B79: 1.802
A80: 59.5 | B80: 1.795
A81: 59.75 | B81: 1.789
A82: 60 | B82: 1.783
A83: 60.25 | B83: 1.776
A84: 60.5 | B84: 1.77
A85: 60.75 | B85: 1.764
A86: 61 | B86: 1.757
A87: 61.25 | B87: 1.751
A88: 61.5 | B88: 1.745
A89: 61.75 | B89: 1.74
A90: 62 | B90: 1.735
A91: 62.25 | B91: 1.73
A92: 62.5 | B92: 1.725
A93: 62.75 | B93: 1.72
A94: 63 | B94: 1.715
A95: 63.25 | B95: 1.711
A96: 63.5 | B96: 1.707
A97: 63.75 | B97: 1.703
A98: 64 | B98: 1.698
A99: 64.25 | B99: 1.694
A100: 64.5 | B100: 1.69
A101: 64.75 | B101: 1.686
A102: 65 | B102: 1.681
A103: 65.25 | B103: 1.676
A104: 65.5 | B104: 1.672
A105: 65.75 | B105: 1.668
A106: 66 | B106: 1.664
A107: 66.25 | B107: 1.66
A108: 66.5 | B108: 1.655
A109: 66.75 | B109: 1.651
A110: 67 | B110: 1.647
A111: 67.25 | B111: 1.643
A112: 67.5 | B112: 1.639
A113: 67.75 | B113: 1.634
A114: 68 | B114: 1.631
A115: 68.25 | B115: 1.627
A116: 68.5 | B116: 1.623
A117: 68.75 | B117: 1.62
A118: 69 | B118: 1.618
A119: 69.25 | B119: 1.615
A120: 69.5 | B120: 1.612
A121: 69.75 | B121: 1.608
A122: 70 | B122: 1.605
A123: 70.25 | B123: 1.601
A124: 70.5 | B124: 1.598
A125: 70.75 | B125: 1.595
A126: 71 | B126: 1.592
A127: 71.25 | B127: 1.589
A128: 71.5 | B128: 1.586
A129: 71.75 | B129: 1.583
A130: 72 | B130: 1.58
A131: 72.25 | B131: 1.577
A132: 72.5 | B132: 1.574
A133: 72.75 | B133: 1.571
A134: 73 | B134: 1.567
A135: 73.25 | B135: 1.564
A136: 73.5 | B136: 1.561
A137: 73.75 | B137: 1.558
A138: 74 | B138: 1.555
A139: 74.25 | B139: 1.552
A140: 74.5 | B140: 1.549
A141: 74.75 | B141: 1.546
A142: 75 | B142: 1.543
A143: 75.25 | B143: 1.541
A144: 75.5 | B144: 1.539
A145: 75.75 | B145: 1.536
A146: 76 | B146: 1.534
A147: 76.25 | B147: 1.531
A148: 76.5 | B148: 1.529
A149: 76.75 | B149: 1.526
A150: 77 | B150: 1.524
A151: 77.25 | B151: 1.521
A152: 77.5 | B152: 1.519
A153: 77.75 | B153: 1.517
A154: 78 | B154: 1.515
A155: 78.25 | B155: 1.512
A156: 78.5 | B156: 1.51
A157: 78.75 | B157: 1.508
A158: 79 | B158: 1.506
A159: 79.25 | B159: 1.503
A160: 79.5 | B160: 1.501
A161: 79.75 | B161: 1.499
A162: 80 | B162: 1.497
A163: 80.25 | B163: 1.494
A164: 80.5 | B164: 1.492
A165: 80.75 | B165: 1.49
A166: 81 | B166: 1.488
A167: 81.25 | B167: 1.485
A168: 81.5 | B168: 1.483
A169: 81.75 | B169: 1.481
A170: 82 | B170: 1.479
A171: 82.25 | B171: 1.477
A172: 82.5 | B172: 1.475
A173: 82.75 | B173: 1.473
A174: 83 | B174: 1.471
A175: 83.25 | B175: 1.469
A176: 83.5 | B176: 1.466
A177: 83.75 | B177: 1.464
A178: 84 | B178: 1.462
A179: 84.25 | B179: 1.46
A180: 84.5 | B180: 1.457
A181: 84.75 | B181: 1.455
A182: 85 | B182: 1.453
A183: 85.25 | B183: 1.451
A184: 85.5 | B184: 1.449
A185: 85.75 | B185: 1.447
A186: 86 | B186: 1.445
A187: 86.25 | B187: 1.443
A188: 86.5 | B188: 1.442
A189: 86.75 | B189: 1.44
A190: 87 | B190: 1.439
A191: 87.25 | B191: 1.437
A192: 87.5 | B192: 1.436
A193: 87.75 | B193: 1.434
A194: 88 | B194: 1.433
A195: 88.25 | B195: 1.431
A196: 88.5 | B196: 1.429
A197: 88.75 | B197: 1.428
A198: 89 | B198: 1.427
A199: 89.25 | B199: 1.425
A200: 89.5 | B200: 1.424
... 246 more rows

Sheet Classes
A1: Class | B1: AF | C1: WF | D1: BL | E1: Kmax | F1: Stat
A2: Men AAPF Guest | B2: 0 | C2: 1 | D2: 0 | E2: 227.5 | F2: A
A5: Men AAPF Novice | B5: 0 | C5: 1 | D5: 0 | E5: 227.5 | F5: A
A6: Men AAPF Teen | B6: 1 | C6: 1 | D6: 1 | E6: 227.5 | F6: A
A7: Men AAPF Teen 13-15 | B7: 1 | C7: 1 | D7: 1 | E7: 227.5 | F7: A
A8: Men AAPF Teen 13-15 114 1/2 | B8: 1 | C8: 1 | D8: 1 | E8: 52 | F8: A
A9: Men AAPF Teen 13-15 123 1/2 | B9: 1 | C9: 1 | D9: 1 | E9: 56 | F9: A
A10: Men AAPF Teen 13-15 132 1/4 | B10: 1 | C10: 1 | D10: 1 | E10: 60 | F10: A
A11: Men AAPF Teen 13-15 148 3/4 | B11: 1 | C11: 1 | D11: 1 | E11: 67.5 | F11: A
A12: Men AAPF Teen 13-15 165 1/4 | B12: 1 | C12: 1 | D12: 1 | E12: 75 | F12: A
A13: Men AAPF Teen 13-15 181 3/4 | B13: 1 | C13: 1 | D13: 1 | E13: 82.5 | F13: A
A14: Men AAPF Teen 13-15 198 1/4 | B14: 1 | C14: 1 | D14: 1 | E14: 90 | F14: A
A15: Men AAPF Teen 13-15 220 1/4 | B15: 1 | C15: 1 | D15: 1 | E15: 100 | F15: A
A16: Men AAPF Teen 13-15 242 1/2 | B16: 1 | C16: 1 | D16: 1 | E16: 110 | F16: A
A17: Men AAPF Teen 13-15 275 1/4 | B17: 1 | C17: 1 | D17: 1 | E17: 125 | F17: A
A18: Men AAPF Teen 13-15 308 | B18: 1 | C18: 1 | D18: 1 | E18: 140 | F18: A
A19: Men AAPF Teen 13-15 SHW | B19: 1 | C19: 1 | D19: 1 | E19: 227.5 | F19: A
A20: Men AAPF Teen 16-17 | B20: 1 | C20: 1 | D20: 1 | E20: 227.5 | F20: A
A21: Men AAPF Teen 16-17 114 1/2 | B21: 1 | C21: 1 | D21: 1 | E21: 52 | F21: A
A22: Men AAPF Teen 16-17 123 1/2 | B22: 1 | C22: 1 | D22: 1 | E22: 56 | F22: A
A23: Men AAPF Teen 16-17 132 1/4 | B23: 1 | C23: 1 | D23: 1 | E23: 60 | F23: A
A24: Men AAPF Teen 16-17 148 3/4 | B24: 1 | C24: 1 | D24: 1 | E24: 67.5 | F24: A
A25: Men AAPF Teen 16-17 165 1/4 | B25: 1 | C25: 1 | D25: 1 | E25: 75 | F25: A
A26: Men AAPF Teen 16-17 181 3/4 | B26: 1 | C26: 1 | D26: 1 | E26: 82.5 | F26: A
A27: Men AAPF Teen 16-17 198 1/4 | B27: 1 | C27: 1 | D27: 1 | E27: 90 | F27: A
A28: Men AAPF Teen 16-17 220 1/4 | B28: 1 | C28: 1 | D28: 1 | E28: 100 | F28: A
A29: Men AAPF Teen 16-17 242 1/2 | B29: 1 | C29: 1 | D29: 1 | E29: 110 | F29: A
A30: Men AAPF Teen 16-17 275 1/4 | B30: 1 | C30: 1 | D30: 1 | E30: 125 | F30: A
A31: Men AAPF Teen 16-17 308 | B31: 1 | C31: 1 | D31: 1 | E31: 140 | F31: A
A32: Men AAPF Teen 16-17 SHW | B32: 1 | C32: 1 | D32: 1 | E32: 227.5 | F32: A
A33: Men AAPF Teen 18-19 | B33: 1 | C33: 1 | D33: 1 | E33: 227.5 | F33: A
A34: Men AAPF Teen 18-19 114 1/2 | B34: 1 | C34: 1 | D34: 1 | E34: 52 | F34: A
A35: Men AAPF Teen 18-19 123 1/2 | B35: 1 | C35: 1 | D35: 1 | E35: 56 | F35: A
A36: Men AAPF Teen 18-19 132 1/4 | B36: 1 | C36: 1 | D36: 1 | E36: 60 | F36: A
A37: Men AAPF Teen 18-19 148 3/4 | B37: 1 | C37: 1 | D37: 1 | E37: 67.5 | F37: A
A38: Men AAPF Teen 18-19 165 1/4 | B38: 1 | C38: 1 | D38: 1 | E38: 75 | F38: A
A39: Men AAPF Teen 18-19 181 3/4 | B39: 1 | C39: 1 | D39: 1 | E39: 82.5 | F39: A
A40: Men AAPF Teen 18-19 198 1/4 | B40: 1 | C40: 1 | D40: 1 | E40: 90 | F40: A
A41: Men AAPF Teen 18-19 220 1/4 | B41: 1 | C41: 1 | D41: 1 | E41: 100 | F41: A
A42: Men AAPF Teen 18-19 242 1/2 | B42: 1 | C42: 1 | D42: 1 | E42: 110 | F42: A
A43: Men AAPF Teen 18-19 275 1/4 | B43: 1 | C43: 1 | D43: 1 | E43: 125 | F43: A
A44: Men AAPF Teen 18-19 308 | B44: 1 | C44: 1 | D44: 1 | E44: 140 | F44: A
A45: Men AAPF Teen 18-19 SHW | B45: 1 | C45: 1 | D45: 1 | E45: 227.5 | F45: A
A46: Men AAPF JR | B46: 1 | C46: 1 | D46: 1 | E46: 227.5 | F46: A
A47: Men AAPF JR 114 1/2 | B47: 1 | C47: 1 | D47: 1 | E47: 52 | F47: A
A48: Men AAPF JR 123 1/2 | B48: 1 | C48: 1 | D48: 1 | E48: 56 | F48: A
A49: Men AAPF JR 132 1/4 | B49: 1 | C49: 1 | D49: 1 | E49: 60 | F49: A
A50: Men AAPF JR 148 3/4 | B50: 1 | C50: 1 | D50: 1 | E50: 67.5 | F50: A
A51: Men AAPF JR 165 1/4 | B51: 1 | C51: 1 | D51: 1 | E51: 75 | F51: A
A52: Men AAPF JR 181 3/4 | B52: 1 | C52: 1 | D52: 1 | E52: 82.5 | F52: A
A53: Men AAPF JR 198 1/4 | B53: 1 | C53: 1 | D53: 1 | E53: 90 | F53: A
A54: Men AAPF JR 220 1/4 | B54: 1 | C54: 1 | D54: 1 | E54: 100 | F54: A
A55: Men AAPF JR 242 1/2 | B55: 1 | C55: 1 | D55: 1 | E55: 110 | F55: A
A56: Men AAPF JR 275 1/4 | B56: 1 | C56: 1 | D56: 1 | E56: 125 | F56: A
A57: Men AAPF JR 308 | B57: 1 | C57: 1 | D57: 1 | E57: 140 | F57: A
A58: Men AAPF JR SHW | B58: 1 | C58: 1 | D58: 1 | E58: 227.5 | F58: A
A59: Men AAPF | B59: 0 | C59: 1 | D59: 1 | E59: 227.5 | F59: A
A60: Men AAPF 114 1/2 | B60: 0 | C60: 1 | D60: 1 | E60: 52 | F60: A
A61: Men AAPF 123 1/2 | B61: 0 | C61: 1 | D61: 1 | E61: 56 | F61: A
A62: Men AAPF 132 1/4 | B62: 0 | C62: 1 | D62: 1 | E62: 60 | F62: A
A63: Men AAPF 148 3/4 | B63: 0 | C63: 1 | D63: 1 | E63: 67.5 | F63: A
A64: Men AAPF 165 1/4 | B64: 0 | C64: 1 | D64: 1 | E64: 75 | F64: A
A65: Men AAPF 181 3/4 | B65: 0 | C65: 1 | D65: 1 | E65: 82.5 | F65: A
A66: Men AAPF 198 1/4 | B66: 0 | C66: 1 | D66: 1 | E66: 90 | F66: A
A67: Men AAPF 220 1/4 | B67: 0 | C67: 1 | D67: 1 | E67: 100 | F67: A
A68: Men AAPF 242 1/2 | B68: 0 | C68: 1 | D68: 1 | E68: 110 | F68: A
A69: Men AAPF 275 1/4 | B69: 0 | C69: 1 | D69: 1 | E69: 125 | F69: A
A70: Men AAPF 308 | B70: 0 | C70: 1 | D70: 1 | E70: 140 | F70: A
A71: Men AAPF SHW | B71: 0 | C71: 1 | D71: 1 | E71: 227.5 | F71: A
A72: Men AAPF SubMaster | B72: 0 | C72: 0 | D72: 1 | E72: 227.5 | F72: A
A73: Men AAPF SubMaster 114 1/2 | B73: 0 | C73: 0 | D73: 1 | E73: 52 | F73: A
A74: Men AAPF SubMaster 123 1/2 | B74: 0 | C74: 0 | D74: 1 | E74: 56 | F74: A
A75: Men AAPF SubMaster 132 1/4 | B75: 0 | C75: 0 | D75: 1 | E75: 60 | F75: A
A76: Men AAPF SubMaster 148 3/4 | B76: 0 | C76: 0 | D76: 1 | E76: 67.5 | F76: A
A77: Men AAPF SubMaster 165 1/4 | B77: 0 | C77: 0 | D77: 1 | E77: 75 | F77: A
A78: Men AAPF SubMaster 181 3/4 | B78: 0 | C78: 0 | D78: 1 | E78: 82.5 | F78: A
A79: Men AAPF SubMaster 198 1/4 | B79: 0 | C79: 0 | D79: 1 | E79: 90 | F79: A
A80: Men AAPF SubMaster 220 1/4 | B80: 0 | C80: 0 | D80: 1 | E80: 100 | F80: A
A81: Men AAPF SubMaster 242 1/2 | B81: 0 | C81: 0 | D81: 1 | E81: 110 | F81: A
A82: Men AAPF SubMaster 275 1/4 | B82: 0 | C82: 0 | D82: 1 | E82: 125 | F82: A
A83: Men AAPF SubMaster 308 | B83: 0 | C83: 0 | D83: 1 | E83: 140 | F83: A
A84: Men AAPF SubMaster SHW | B84: 0 | C84: 0 | D84: 1 | E84: 227.5 | F84: A
A85: Men AAPF Master | B85: 1 | C85: 1 | D85: 1 | E85: 227.5 | F85: A
A86: Men AAPF Master (40-49) | B86: 1 | C86: 1 | D86: 1 | E86: 227.5 | F86: A
A87: Men AAPF Master (50+) | B87: 1 | C87: 1 | D87: 1 | E87: 227.5 | F87: A
A88: Men AAPF Master 40-44 | B88: 1 | C88: 1 | D88: 1 | E88: 227.5 | F88: A
A89: Men AAPF Master 40-44 114 1/2 | B89: 1 | C89: 1 | D89: 1 | E89: 52 | F89: A
A90: Men AAPF Master 40-44 123 1/2 | B90: 1 | C90: 1 | D90: 1 | E90: 56 | F90: A
A91: Men AAPF Master 40-44 132 1/4 | B91: 1 | C91: 1 | D91: 1 | E91: 60 | F91: A
A92: Men AAPF Master 40-44 148 3/4 | B92: 1 | C92: 1 | D92: 1 | E92: 67.5 | F92: A
A93: Men AAPF Master 40-44 165 1/4 | B93: 1 | C93: 1 | D93: 1 | E93: 75 | F93: A
A94: Men AAPF Master 40-44 181 3/4 | B94: 1 | C94: 1 | D94: 1 | E94: 82.5 | F94: A
A95: Men AAPF Master 40-44 198 1/4 | B95: 1 | C95: 1 | D95: 1 | E95: 90 | F95: A
A96: Men AAPF Master 40-44 220 1/4 | B96: 1 | C96: 1 | D96: 1 | E96: 100 | F96: A
A97: Men AAPF Master 40-44 242 1/2 | B97: 1 | C97: 1 | D97: 1 | E97: 110 | F97: A
A98: Men AAPF Master 40-44 275 1/4 | B98: 1 | C98: 1 | D98: 1 | E98: 125 | F98: A
A99: Men AAPF Master 40-44 308 | B99: 1 | C99: 1 | D99: 1 | E99: 140 | F99: A
A100: Men AAPF Master 40-44 SHW | B100: 1 | C100: 1 | D100: 1 | E100: 227.5 | F100: A
A101: Men AAPF Master 45-49 | B101: 1 | C101: 1 | D101: 1 | E101: 227.5 | F101: A
A102: Men AAPF Master 45-49 114 1/2 | B102: 1 | C102: 1 | D102: 1 | E102: 52 | F102: A
A103: Men AAPF Master 45-49 123 1/2 | B103: 1 | C103: 1 | D103: 1 | E103: 56 | F103: A
A104: Men AAPF Master 45-49 132 1/4 | B104: 1 | C104: 1 | D104: 1 | E104: 60 | F104: A
A105: Men AAPF Master 45-49 148 3/4 | B105: 1 | C105: 1 | D105: 1 | E105: 67.5 | F105: A
A106: Men AAPF Master 45-49 165 1/4 | B106: 1 | C106: 1 | D106: 1 | E106: 75 | F106: A
A107: Men AAPF Master 45-49 181 3/4 | B107: 1 | C107: 1 | D107: 1 | E107: 82.5 | F107: A
A108: Men AAPF Master 45-49 198 1/4 | B108: 1 | C108: 1 | D108: 1 | E108: 90 | F108: A
A109: Men AAPF Master 45-49 220 1/4 | B109: 1 | C109: 1 | D109: 1 | E109: 100 | F109: A
A110: Men AAPF Master 45-49 242 1/2 | B110: 1 | C110: 1 | D110: 1 | E110: 110 | F110: A
A111: Men AAPF Master 45-49 275 1/4 | B111: 1 | C111: 1 | D111: 1 | E111: 125 | F111: A
A112: Men AAPF Master 45-49 308 | B112: 1 | C112: 1 | D112: 1 | E112: 140 | F112: A
A113: Men AAPF Master 45-49 SHW | B113: 1 | C113: 1 | D113: 1 | E113: 227.5 | F113: A
A114: Men AAPF Master 50-54 | B114: 1 | C114: 1 | D114: 1 | E114: 227.5 | F114: A
A115: Men AAPF Master 50-54 114 1/2 | B115: 1 | C115: 1 | D115: 1 | E115: 52 | F115: A
A116: Men AAPF Master 50-54 123 1/2 | B116: 1 | C116: 1 | D116: 1 | E116: 56 | F116: A
A117: Men AAPF Master 50-54 132 1/4 | B117: 1 | C117: 1 | D117: 1 | E117: 60 | F117: A
A118: Men AAPF Master 50-54 148 3/4 | B118: 1 | C118: 1 | D118: 1 | E118: 67.5 | F118: A
A119: Men AAPF Master 50-54 165 1/4 | B119: 1 | C119: 1 | D119: 1 | E119: 75 | F119: A
A120: Men AAPF Master 50-54 181 3/4 | B120: 1 | C120: 1 | D120: 1 | E120: 82.5 | F120: A
A121: Men AAPF Master 50-54 198 1/4 | B121: 1 | C121: 1 | D121: 1 | E121: 90 | F121: A
A122: Men AAPF Master 50-54 220 1/4 | B122: 1 | C122: 1 | D122: 1 | E122: 100 | F122: A
A123: Men AAPF Master 50-54 242 1/2 | B123: 1 | C123: 1 | D123: 1 | E123: 110 | F123: A
A124: Men AAPF Master 50-54 275 1/4 | B124: 1 | C124: 1 | D124: 1 | E124: 125 | F124: A
A125: Men AAPF Master 50-54 308 | B125: 1 | C125: 1 | D125: 1 | E125: 140 | F125: A
A126: Men AAPF Master 50-54 SHW | B126: 1 | C126: 1 | D126: 1 | E126: 227.5 | F126: A
A127: Men AAPF Master 55-59 | B127: 1 | C127: 1 | D127: 1 | E127: 227.5 | F127: A
A128: Men AAPF Master 55-59 114 1/2 | B128: 1 | C128: 1 | D128: 1 | E128: 52 | F128: A
A129: Men AAPF Master 55-59 123 1/2 | B129: 1 | C129: 1 | D129: 1 | E129: 56 | F129: A
A130: Men AAPF Master 55-59 132 1/4 | B130: 1 | C130: 1 | D130: 1 | E130: 60 | F130: A
A131: Men AAPF Master 55-59 148 3/4 | B131: 1 | C131: 1 | D131: 1 | E131: 67.5 | F131: A
A132: Men AAPF Master 55-59 165 1/4 | B132: 1 | C132: 1 | D132: 1 | E132: 75 | F132: A
A133: Men AAPF Master 55-59 181 3/4 | B133: 1 | C133: 1 | D133: 1 | E133: 82.5 | F133: A
A134: Men AAPF Master 55-59 198 1/4 | B134: 1 | C134: 1 | D134: 1 | E134: 90 | F134: A
A135: Men AAPF Master 55-59 220 1/4 | B135: 1 | C135: 1 | D135: 1 | E135: 100 | F135: A
A136: Men AAPF Master 55-59 242 1/2 | B136: 1 | C136: 1 | D136: 1 | E136: 110 | F136: A
A137: Men AAPF Master 55-59 275 1/4 | B137: 1 | C137: 1 | D137: 1 | E137: 125 | F137: A
A138: Men AAPF Master 55-59 308 | B138: 1 | C138: 1 | D138: 1 | E138: 140 | F138: A
A139: Men AAPF Master 55-59 SHW | B139: 1 | C139: 1 | D139: 1 | E139: 227.5 | F139: A
A140: Men AAPF Master 60-64 | B140: 1 | C140: 1 | D140: 1 | E140: 227.5 | F140: A
A141: Men AAPF Master 60-64 114 1/2 | B141: 1 | C141: 1 | D141: 1 | E141: 52 | F141: A
A142: Men AAPF Master 60-64 123 1/2 | B142: 1 | C142: 1 | D142: 1 | E142: 56 | F142: A
A143: Men AAPF Master 60-64 132 1/4 | B143: 1 | C143: 1 | D143: 1 | E143: 60 | F143: A
A144: Men AAPF Master 60-64 148 3/4 | B144: 1 | C144: 1 | D144: 1 | E144: 67.5 | F144: A
A145: Men AAPF Master 60-64 165 1/4 | B145: 1 | C145: 1 | D145: 1 | E145: 75 | F145: A
A146: Men AAPF Master 60-64 181 3/4 | B146: 1 | C146: 1 | D146: 1 | E146: 82.5 | F146: A
A147: Men AAPF Master 60-64 198 1/4 | B147: 1 | C147: 1 | D147: 1 | E147: 90 | F147: A
A148: Men AAPF Master 60-64 220 1/4 | B148: 1 | C148: 1 | D148: 1 | E148: 100 | F148: A
A149: Men AAPF Master 60-64 242 1/2 | B149: 1 | C149: 1 | D149: 1 | E149: 110 | F149: A
A150: Men AAPF Master 60-64 275 1/4 | B150: 1 | C150: 1 | D150: 1 | E150: 125 | F150: A
A151: Men AAPF Master 60-64 308 | B151: 1 | C151: 1 | D151: 1 | E151: 140 | F151: A
A152: Men AAPF Master 60-64 SHW | B152: 1 | C152: 1 | D152: 1 | E152: 227.5 | F152: A
A153: Men AAPF Master 65-69 | B153: 1 | C153: 1 | D153: 1 | E153: 227.5 | F153: A
A154: Men AAPF Master 65-69 114 1/2 | B154: 1 | C154: 1 | D154: 1 | E154: 52 | F154: A
A155: Men AAPF Master 65-69 123 1/2 | B155: 1 | C155: 1 | D155: 1 | E155: 56 | F155: A
A156: Men AAPF Master 65-69 132 1/4 | B156: 1 | C156: 1 | D156: 1 | E156: 60 | F156: A
A157: Men AAPF Master 65-69 148 3/4 | B157: 1 | C157: 1 | D157: 1 | E157: 67.5 | F157: A
A158: Men AAPF Master 65-69 165 1/4 | B158: 1 | C158: 1 | D158: 1 | E158: 75 | F158: A
A159: Men AAPF Master 65-69 181 3/4 | B159: 1 | C159: 1 | D159: 1 | E159: 82.5 | F159: A
A160: Men AAPF Master 65-69 198 1/4 | B160: 1 | C160: 1 | D160: 1 | E160: 90 | F160: A
A161: Men AAPF Master 65-69 220 1/4 | B161: 1 | C161: 1 | D161: 1 | E161: 100 | F161: A
A162: Men AAPF Master 65-69 242 1/2 | B162: 1 | C162: 1 | D162: 1 | E162: 110 | F162: A
A163: Men AAPF Master 65-69 275 1/4 | B163: 1 | C163: 1 | D163: 1 | E163: 125 | F163: A
A164: Men AAPF Master 65-69 308 | B164: 1 | C164: 1 | D164: 1 | E164: 140 | F164: A
A165: Men AAPF Master 65-69 SHW | B165: 1 | C165: 1 | D165: 1 | E165: 227.5 | F165: A
A166: Men AAPF Master 70-74 | B166: 1 | C166: 1 | D166: 1 | E166: 227.5 | F166: A
A167: Men AAPF Master 70-74 114 1/2 | B167: 1 | C167: 1 | D167: 1 | E167: 52 | F167: A
A168: Men AAPF Master 70-74 123 1/2 | B168: 1 | C168: 1 | D168: 1 | E168: 56 | F168: A
A169: Men AAPF Master 70-74 132 1/4 | B169: 1 | C169: 1 | D169: 1 | E169: 60 | F169: A
A170: Men AAPF Master 70-74 148 3/4 | B170: 1 | C170: 1 | D170: 1 | E170: 67.5 | F170: A
A171: Men AAPF Master 70-74 165 1/4 | B171: 1 | C171: 1 | D171: 1 | E171: 75 | F171: A
A172: Men AAPF Master 70-74 181 3/4 | B172: 1 | C172: 1 | D172: 1 | E172: 82.5 | F172: A
A173: Men AAPF Master 70-74 198 1/4 | B173: 1 | C173: 1 | D173: 1 | E173: 90 | F173: A
A174: Men AAPF Master 70-74 220 1/4 | B174: 1 | C174: 1 | D174: 1 | E174: 100 | F174: A
A175: Men AAPF Master 70-74 242 1/2 | B175: 1 | C175: 1 | D175: 1 | E175: 110 | F175: A
A176: Men AAPF Master 70-74 275 1/4 | B176: 1 | C176: 1 | D176: 1 | E176: 125 | F176: A
A177: Men AAPF Master 70-74 308 | B177: 1 | C177: 1 | D177: 1 | E177: 140 | F177: A
A178: Men AAPF Master 70-74 SHW | B178: 1 | C178: 1 | D178: 1 | E178: 227.5 | F178: A
A179: Men AAPF Master 75-79 | B179: 1 | C179: 1 | D179: 1 | E179: 227.5 | F179: A
A180: Men AAPF Master 75-79 114 1/2 | B180: 1 | C180: 1 | D180: 1 | E180: 52 | F180: A
A181: Men AAPF Master 75-79 123 1/2 | B181: 1 | C181: 1 | D181: 1 | E181: 56 | F181: A
A182: Men AAPF Master 75-79 132 1/4 | B182: 1 | C182: 1 | D182: 1 | E182: 60 | F182: A
A183: Men AAPF Master 75-79 148 3/4 | B183: 1 | C183: 1 | D183: 1 | E183: 67.5 | F183: A
A184: Men AAPF Master 75-79 165 1/4 | B184: 1 | C184: 1 | D184: 1 | E184: 75 | F184: A
A185: Men AAPF Master 75-79 181 3/4 | B185: 1 | C185: 1 | D185: 1 | E185: 82.5 | F185: A
A186: Men AAPF Master 75-79 198 1/4 | B186: 1 | C186: 1 | D186: 1 | E186: 90 | F186: A
A187: Men AAPF Master 75-79 220 1/4 | B187: 1 | C187: 1 | D187: 1 | E187: 100 | F187: A
A188: Men AAPF Master 75-79 242 1/2 | B188: 1 | C188: 1 | D188: 1 | E188: 110 | F188: A
A189: Men AAPF Master 75-79 275 1/4 | B189: 1 | C189: 1 | D189: 1 | E189: 125 | F189: A
A190: Men AAPF Master 75-79 308 | B190: 1 | C190: 1 | D190: 1 | E190: 140 | F190: A
A191: Men AAPF Master 75-79 SHW | B191: 1 | C191: 1 | D191: 1 | E191: 227.5 | F191: A
A192: Men AAPF Master 80-84 | B192: 1 | C192: 1 | D192: 1 | E192: 227.5 | F192: A
A193: Men AAPF Master 80-84 114 1/2 | B193: 1 | C193: 1 | D193: 1 | E193: 52 | F193: A
A194: Men AAPF Master 80-84 123 1/2 | B194: 1 | C194: 1 | D194: 1 | E194: 56 | F194: A
A195: Men AAPF Master 80-84 132 1/4 | B195: 1 | C195: 1 | D195: 1 | E195: 60 | F195: A
A196: Men AAPF Master 80-84 148 3/4 | B196: 1 | C196: 1 | D196: 1 | E196: 67.5 | F196: A
A197: Men AAPF Master 80-84 165 1/4 | B197: 1 | C197: 1 | D197: 1 | E197: 75 | F197: A
A198: Men AAPF Master 80-84 181 3/4 | B198: 1 | C198: 1 | D198: 1 | E198: 82.5 | F198: A
A199: Men AAPF Master 80-84 198 1/4 | B199: 1 | C199: 1 | D199: 1 | E199: 90 | F199: A
A200: Men AAPF Master 80-84 220 1/4 | B200: 1 | C200: 1 | D200: 1 | E200: 100 | F200: A
A201: Men AAPF Master 80-84 242 1/2 | B201: 1 | C201: 1 | D201: 1 | E201: 110 | F201: A
A202: Men AAPF Master 80-84 275 1/4 | B202: 1 | C202: 1 | D202: 1 | E202: 125 | F202: A
... 477 more rows

Sheet Div legend
A1: Divisions
A3: Abbrev | B3: Description | C3: Scoring
A4: M-Nov | B4: Men's Novice | C4: 1
A5: M-T2ST | B5: T(16-17) Single Tested | C5: 1
A6: M-T3RT | B6: T(18-19) Raw Tested | C6: 1
A7: M-M3R | B7: M(50-54) Raw | C7: 1
A8: M-M3RT | B8: M(50-54) Raw Tested | C8: 1
A9: M-M4RT | B9: M(55-59) Raw Tested | C9: 1
A10: M-M3R | B10: M(40-44) Raw | C10: 1
A11: M-M2RT | B11: M(45-49) Raw Tested | C11: 1
A12: M-M1RT | B12: M(40-44) Raw Tested | C12: 1
A13: M-OR | B13: Men's Open Raw | C13: 1
A14: M-ORT | B14: Men's Open Raw Tested | C14: 1
A15: M-OS | B15: Open Single Ply | C15: 1
A16: M-OST | B16: Open Single Ply Tested | C16: 1
A17: M-SM S | B17: SubM Single Ply | C17: 1
A18: M-SMST | B18: SubM Single Ply Tested | C18: 1
A19: M-M4M | B19: M(55-59) Multi Ply | C19: 1
A20: M-OM | B20: Open Multi Ply | C20: 1
A21: F-Nov | B21: Women's Novice | C21: 1
A22: F-OR | B22: Women's Open Raw | C22: 1
A23: F-ORT | B23: W Open Raw Tested | C23: 1
A24: F-JRT | B24: WJunior Raw Tested | C24: 1
A25: F-M1RT | B25: W M(40-44) Raw Tested | C25: 1
A26: M-JRT | B26: Men's Junior Raw Tested | C26: 1
A27: M-M4MT | B27: Men's M(55-59)Multi Tested | C27: 1
A28: M-M1R | B28: M(45-49) Raw
A29: M-M2R | B29: M (55-59) Raw
A30: F-M1R | B30: W M(40-44) Raw
A31: M-T3R | B31: T(18-19) Raw
A32: F-M2RT | B32: W Sub M (33-39) Raw
A33: M-SM2T | B33: M Sub M (33-39) RawTested
A34: M-SM2R | B34: M Sub M (33-39) Raw
A35: M-T4RT | B35: T(13-15) Raw Tested
A36: M-R | B36: Mens (20-24) Raw

Sheet Module1 (hidden)

Sheet Sheet1
